Workbook

Sheet HUD
C1: APPLE INC (AAPL)
J4: =C1 -> APPLE INC (AAPL) | N4: Score / | O4: Points | Q4: Grade
I5: Ticker | J5: AAPL | M5: Value | N5: =D18 -> 5.888579746 | O5: =D20*100 -> 12.3 | P5: =N5/O5 -> 0.4787463208 | Q5: C-
I6: CIK | J6: =getCIK(J5) -> 320193 | M6: Quality | N6: =E18 -> 44.62294444 | O6: =E20*100 -> 49.7 | P6: =N6/O6 -> 0.8978459646 | Q6: A
M7: Growth | N7: =F18 -> 21.99921894 | O7: =F20*100 -> 38 | P7: 0.5789268142 | Q7: C+
I8: GRADE | J8: B+ | M8: Overall | N8: =B18 -> 72.51074313 | O8: 100 | P8: 0.7251074313 | Q8: B+
M10: Highlights and Lowlights
N11: Value | O11: Quality | P11: Growth
M12: High | N12: P/E | O12: Net Margin | P12: CFO Y/Y
N13: 12.5 | O13: 22.85 | P13: 36.09
M14: Low | N14: P/B | O14: ROIC | P14: Op Mar 3-yr
N15: 5.4 | O15: 40.1 | P15: 8.84
C17: Categories | D17: Valuation | E17: Quality | F17: Growth
B18: =SUM(D18:F18) -> 72.51074313 | C18: Weighted Ticker Scores | D18: =SUMPRODUCT(G19:L19,G20:L20) -> 5.888579746 | E18: =SUMPRODUCT(M19:T19,M20:T20)+SUMPRODUCT(AG19:AH19,AG20:AH20) -> 44.62294444 | F18: =SUMPRODUCT(U19:AF19,U20:AF20) -> 21.99921894 | G18: =COLUMN(G17)-6 -> 1 | H18: =COLUMN(H17)-6 -> 2 | I18: 3 | J18: 4 | K18: 5 | L18: 6 | M18: 7 | N18: 8 | O18: 9 | P18: 10 | Q18: 11 | R18: 12 | S18: 13 | T18: 14 | U18: 15 | V18: 16 | W18: 17 | X18: 18 | Y18: 19 | Z18: 20 | AA18: 21 | AB18: 22 | AC18: 23 | AD18: 24 | AE18: 25 | AF18: 26 | AG18: 27 | AH18: 28
B19: =SUM(D19:F19)/3 -> 63.38012822 | C19: Average Ticker Scores | D19: =AVERAGE(G19:L19) -> 44.14677199 | E19: =AVERAGE(M19:T19,AG19:AH19) -> 89.33410873 | F19: =AVERAGE(U19:AF19) -> 56.65950394 | G19: 75.66297913 | H19: 2.427745342 | I19: 3.022649765 | J19: 67.64670563 | K19: 48.57170868 | L19: 67.54884338 | M19: 79.43732452 | N19: 96.99594879 | O19: 97.15167236 | P19: 89.07744598 | Q19: 95.59346771 | R19: 89.9956665 | S19: 79.43732452 | T19: 86.02003479 | U19: 73.4919281 | V19: 38.66260529 | W19: 94.75283051 | X19: 46.13257217 | Y19: 18.29681587 | Z19: 72.62784576 | AA19: 40.94360352 | AB19: 20.66658211 | AC19: 95.45476532 | AD19: 49.82790375 | AE19: 33.44623566 | AF19: 95.61035919 | AG19: 97.66565704 | AH19: 81.9665451
B20: =SUM(D20:F20) -> 1 | C20: Weights | D20: =SUM(G20:L20) -> 0.123 | E20: =SUM(M20:T20,AG20,AH20) -> 0.497 | F20: =SUM(U20:AC20,AD20:AF20) -> 0.38 | G20: 0.015 | H20: 0.021 | I20: 0.015 | J20: 0.026 | K20: 0.011 | L20: 0.035 | M20: 0.0225 | N20: 0.035 | O20: 0.05 | P20: 0.0425 | Q20: 0.077 | R20: 0.085 | S20: 0.06 | T20: 0.075 | U20: 0.02 | V20: 0.03 | W20: 0.04 | X20: 0.03 | Y20: 0.04 | Z20: 0.05 | AA20: 0.02 | AB20: 0.04 | AC20: 0.05 | AD20: 0.01 | AE20: 0.03 | AF20: 0.02 | AG20: 0.03 | AH20: 0.02
B22: Ticker | C22: Company Name | D22: Market Cap | E22: Price | F22: # Shares | G22: P/E | H22: P/B | I22: P/S | J22: P/CF | K22: Cash as % of Assets | L22: Cap Ex per Share | M22: Gross Margin | N22: Op Margin | O22: Net Margin | P22: ROA | Q22: ROE | R22: ROE 3-yr | S22: ROIC | T22: ROIC 3-yr | U22: Rev Y/Y | V22: Rev 3-yr | W22: Rev 5-yr | X22: Op Mar Y/Y | Y22: Op Mar 3-yr | Z22: Op Mar 5-yr | AA22: Net Marg Y/Y | AB22: Net Mar 3-yr | AC22: Net Mar 5-yr | AD22: EPS Y/Y | AE22: EPS 3-yr | AF22: CFO Y/Y | AG22: FCF/Sales | AH22: FCF/Net Income | AJ22: Total Score
B23: AAPL | C23: Apple Inc | D23: 644.619 | E23: 116.28 | F23: 5793 | G23: 12.5 | H23: 5.4 | I23: 2.9 | J23: 9.829247675 | K23: 14.32 | L23: 1.983083031 | M23: 40.1 | N23: 30.5 | O23: 22.85 | P23: 20.45 | Q23: 46.25 | R23: 36.83333333 | S23: 40.1 | T23: 27.86666667 | U23: 27.86 | V23: 14.3 | W23: 29.08 | X23: 35.67 | Y23: 8.84 | Z23: 31.11 | AA23: 35.14 | AB23: 8.56 | AC23: 30.67 | AD23: 42.95 | AE23: 13.49 | AF23: 36.09 | AG23: 29.86 | AH23: 1.31 | AJ23: 72.51074313
B24: AVG | C24: Industry Median | D24: =MEDIAN(D23,D25:D28) -> 6.786 | E24: =MEDIAN(E23,E25:E28) -> 94.98 | F24: 147 | G24: 14 | H24: 2.8 | I24: 1.1 | J24: 9.829247675 | K24: 6.92 | L24: 2.746478873 | M24: 29.7 | N24: 7.6 | O24: 6.95 | P24: 9.74 | Q24: 26.23 | R24: 19.01666667 | S24: 29.7 | T24: 15.24 | U24: 15.08 | V24: 12.15 | W24: 10.125 | X24: 35.67 | Y24: 16.08 | Z24: 21.325 | AA24: 46.01 | AB24: 18.56 | AC24: 15.645 | AD24: 44.05 | AE24: 15.675 | AF24: -2.73 | AG24: 5.85 | AH24: 1.17 | AJ24: 40.83558224
B25: WHR | C25: Whirlpool Corp | D25: 11.592 | E25: 149.54 | F25: 80 | G25: 17.3 | H25: 2.4 | I25: 0.6 | J25: 56.85931559 | K25: 3.56 | L25: 8.6125 | M25: 17.4 | N25: 5.6 | O25: 3.21 | P25: 3.87 | Q25: 13.6 | R25: 13.58666667 | S25: 17.4 | T25: 11.43333333 | U25: 5.88 | V25: 2.11 | W25: 3.05 | X25: -4.88 | Y25: 14.47 | Z25: 11.54 | AA25: -21.4 | AB25: 18.56 | AC25: 14.66 | AD25: -20.21 | AE25: 17.86 | AF25: 17.19 | AG25: 3.82 | AH25: 1.17 | AJ25: 21.90651906
B26: HAR | C26: Harman International Industries Inc | D26: 6.786 | E26: 94.98 | F26: 71 | G26: 19.7 | H26: 2.9 | I26: 1.1 | J26: 16.72183099 | K26: 6.92 | L26: 2.746478873 | M26: 29.7 | N26: 7.6 | O26: 5.46 | P26: 7.03 | Q26: 16.48 | R26: 13.02666667 | S26: 29.7 | T26: 10.22 | U26: 15.08 | V26: 12.15 | W26: 12.84 | X26: 42.42 | Y26: 16.08 | Z26: 40.57 | AA26: 46.01 | AB26: 1.31 | AC26: 16.63 | AD26: 44.05 | AE26: 1.93 | AF26: -6.68 | AG26: 5.85 | AH26: 1.05 | AJ26: 34.93840443
B27: GPRO | C27: GoPro Inc | D27: 2.322 | E27: 17.15 | F27: 147 | G27: 14 | H27: 2.8 | I27: 1.4 | J27: 3.019366197 | K27: 6.92 | L27: 2.746478873 | M27: 46.7 | N27: 14.8 | O27: 9.76 | P27: 19.72 | Q27: 30.03 | R27: 35.1 | S27: 46.7 | T27: 29.78 | U27: 41.44 | V27: 81.23 | X27: 89.49 | Y27: 68.96 | AA27: 111.44 | AB27: 73.3 | AD27: 95.74 | AF27: -5.42 | AG27: 4.98 | AH27: 0.54 | AJ27: 62.49194026
B28: PCMXF | C28: Pace PLC | D28: 1.841 | E28: 5.75 | F28: 324 | G28: 10.5 | H28: 2.5 | I28: 0.7 | J28: 7.467532468 | K28: 42.43 | L28: 0.2517006803 | M28: 21 | N28: 7.6 | O28: 6.95 | P28: 9.74 | Q28: 26.23 | R28: 19.01666667 | S28: 21 | T28: 15.24 | U28: 6.11 | V28: 4.3 | W28: 7.41 | X28: 30.33 | Y28: 35.32 | Z28: 9.93 | AA28: 53.05 | AB28: 56.25 | AC28: 12.23 | AD28: 53.02 | AE28: 53.94 | AF28: -2.73 | AG28: 6.94 | AH28: 1.23 | AJ28: 43.37491086
B80: AAPL | F80: AAPL | G80: 75.66297913 | H80: 2.427745342 | I80: 3.022649765 | J80: 67.64670563 | K80: 48.57170868 | L80: 67.54884338 | M80: 79.43732452 | N80: 96.99594879 | O80: 97.15167236 | P80: 89.07744598 | Q80: 95.59346771 | R80: 89.9956665 | S80: 79.43732452 | T80: 86.02003479 | U80: 73.4919281 | V80: 38.66260529 | W80: 94.75283051 | X80: 46.13257217 | Y80: 18.29681587 | Z80: 72.62784576 | AA80: 40.94360352 | AB80: 20.66658211 | AC80: 95.45476532 | AD80: 49.82790375 | AE80: 33.44623566 | AF80: 95.61035919 | AG80: 97.66565704 | AH80: 81.9665451
B81: AVG | F81: AVG | G81: 59.55765915 | H81: 64.00650787 | I81: 61.3649025 | J81: 67.64670563 | K81: 28.931036 | L81: 57.32810593 | M81: 45.40938568 | N81: 27.04343224 | O81: 34.8759613 | P81: 35.95602036 | Q81: 49.00711823 | R81: 33.27010727 | S81: 45.40938568 | T81: 32.89948273 | U81: 37.95581436 | V81: 35.91065216 | W81: 38.1613884 | X81: 46.13257217 | Y81: 28.26188469 | Z81: 44.00163651 | AA81: 51.09335327 | AB81: 32.17076492 | AC81: 34.28150558 | AD81: 51.01095581 | AE81: 37.62844086 | AF81: 26.55398941 | AG81: 32.58904648 | AH81: 65.62316132
B82: WHR | F82: WHR | G82: 22.48303795 | H82: 76.33947754 | I82: 81.34273529 | J82: 2.571049929 | K82: 21.43778038 | L82: 2.918277025 | M82: 11.05657959 | N82: 20.3519516 | O82: 17.67421532 | P82: 10.91144943 | Q82: 13.21167183 | R82: 16.98459053 | S82: 11.05657959 | T82: 18.34975243 | U82: 16.37175751 | V82: 24.18220329 | W82: 15.41354656 | X82: 7.520363331 | Y82: 25.84122658 | Z82: 18.3143158 | AA82: 5.906366348 | AB82: 32.17076492 | AC82: 29.38528442 | AD82: 4.389389992 | AE82: 41.96129608 | AF82: 71.60192871 | AG82: 25.53904724 | AH82: 65.62316132
B83: HAR | F83: HAR | G83: 6.92070961 | H83: 60.60253525 | I83: 61.3649025 | J83: 54.19138718 | K83: 28.931036 | L83: 57.32810593 | M83: 45.40938568 | N83: 27.04343224 | O83: 27.30951691 | P83: 22.30200577 | Q83: 19.28241158 | R83: 15.65735817 | S83: 45.40938568 | T83: 14.71918488 | U83: 37.95581436 | V83: 35.91065216 | W83: 48.96826935 | X83: 55.01855087 | Y83: 28.26188469 | Z83: 90.80966949 | AA83: 51.09335327 | AB83: 14.10746288 | AC83: 39.45724869 | AD83: 51.01095581 | AE83: 15.33590698 | AF83: 19.38494873 | AG83: 32.58904648 | AH83: 48.54165649
B84: GPRO | F84: GPRO | G84: 59.55765915 | H84: 64.00650787 | I84: 47.12171936 | J84: 78.9935379 | K84: 28.931036 | L84: 57.32810593 | M84: 92.16610718 | N84: 56.82483292 | O84: 50.6556282 | P84: 86.91244507 | Q84: 61.92552567 | R84: 86.74841309 | S84: 92.16610718 | T84: 90.52635193 | U84: 94.74538422 | V84: 97.59114075 | W84: 9.207012177 | X84: 95.37880707 | Y84: 96.62348938 | Z84: 3.665722609 | AA84: 94.18850708 | AB84: 93.06933594 | AC84: 0.4847006798 | AD84: 92.20459747 | AE84: 13.10721493 | AF84: 21.53314781 | AG84: 29.46958542 | AH84: 2.863083124
B85: PCMXF | F85: PCMXF | G85: 90.32487488 | H85: 73.48693848 | I85: 77.94231415 | J85: 71.85887146 | K85: 97.36843109 | L85: 85.73197937 | M85: 18.42801285 | N85: 27.04343224 | O85: 34.8759613 | P85: 35.95602036 | Q85: 49.00711823 | R85: 33.27010727 | S85: 18.42801285 | T85: 32.89948273 | U85: 16.79050827 | V85: 26.55340767 | W85: 28.20962906 | X85: 39.21615601 | Y85: 61.76483536 | Z85: 15.21466827 | AA85: 57.67052841 | AB85: 80.93497467 | AC85: 18.91427422 | AD85: 60.53369141 | AE85: 95.07979584 | AF85: 26.55398941 | AG85: 36.6740036 | AH85: 73.28915405

Sheet Annual
A1: APPLE INC (AAPL) CashFlowFlag INCOME STATEMENT
A2: Fiscal year ends in September. USD in millions except per share data. | B2: 2011-09 | C2: 2012-09 | D2: 2013-09 | E2: 2014-09 | F2: 2015-09 | G2: TTM
A3: Revenue | B3: 108249 | C3: 156508 | D3: 170910 | E3: 182795 | F3: 233715 | G3: 233715
A4: Cost of revenue | B4: 64431 | C4: 87846 | D4: 106606 | E4: 112258 | F4: 140089 | G4: 140089
A5: Gross profit | B5: 43818 | C5: 68662 | D5: 64304 | E5: 70537 | F5: 93626 | G5: 93626
A6: Operating expenses | I6: 2009-10-27 | J6: APPLE INC (AAPL) 10-k Annual Report For Year 2009
A7: Research and development | B7: 2429 | C7: 3381 | D7: 4475 | E7: 6041 | F7: 8067 | G7: 8067 | I7: 2010-10-27 | J7: APPLE INC (AAPL) 10-k Annual Report For Year 2010
A8: Sales, General and administrative | B8: 7599 | C8: 10040 | D8: 10830 | E8: 11993 | F8: 14329 | G8: 14329 | I8: 2011-10-26 | J8: APPLE INC (AAPL) 10-k Annual Report For Year 2011
A9: Total operating expenses | B9: 10028 | C9: 13421 | D9: 15305 | E9: 18034 | F9: 22396 | G9: 22396 | I9: 2012-10-31 | J9: APPLE INC (AAPL) 10-k Annual Report For Year 2012
A10: Operating income | B10: 33790 | C10: 55241 | D10: 48999 | E10: 52503 | F10: 71230 | G10: 71230 | I10: 2013-10-30 | J10: APPLE INC (AAPL) 10-k Annual Report For Year 2013
A11: Interest Expense | D11: 136 | E11: 384 | F11: 733 | G11: 733 | I11: 2014-10-27 | J11: APPLE INC (AAPL) 10-k Annual Report For Year 2014
A12: Other income (expense) | B12: 415 | C12: 522 | D12: 1292 | E12: 1364 | F12: 2018 | G12: 2018 | I12: 2015-10-28 | J12: APPLE INC (AAPL) 10-k Annual Report For Year 2015
A13: Income before taxes | B13: 34205 | C13: 55763 | D13: 50155 | E13: 53483 | F13: 72515 | G13: 72515
A14: Provision for income taxes | B14: 8283 | C14: 14030 | D14: 13118 | E14: 13973 | F14: 19121 | G14: 19121
A15: Net income from continuing operations | B15: 25922 | C15: 41733 | D15: 37037 | E15: 39510 | F15: 53394 | G15: 53394
A16: Net income | B16: 25922 | C16: 41733 | D16: 37037 | E16: 39510 | F16: 53394 | G16: 53394
A17: Net income available to common shareholders | B17: 25922 | C17: 41733 | D17: 37037 | E17: 39510 | F17: 53394 | G17: 53394
A18: Earnings per share
A19: Basic | B19: 4.01 | C19: 6.38 | D19: 5.72 | E19: 6.49 | F19: 9.28 | G19: 9.28
A20: Diluted | B20: 3.95 | C20: 6.31 | D20: 5.68 | E20: 6.45 | F20: 9.22 | G20: 9.22
A21: Weighted average shares outstanding
A22: Basic | B22: 6470 | C22: 6544 | D22: 6477 | E22: 6086 | F22: 5753 | G22: 5753
A23: Diluted | B23: 6557 | C23: 6617 | D23: 6522 | E23: 6123 | F23: 5793 | G23: 5793
A24: EBITDA | B24: 35604 | C24: 58518 | D24: 57048 | E24: 61813 | F24: 84505 | G24: 84505
A26: APPLE INC (AAPL) CashFlowFlag BALANCE SHEET
A27: Fiscal year ends in September. USD in millions except per share data. | B27: 2011-09 | C27: 2012-09 | D27: 2013-09 | E27: 2014-09 | F27: 2015-09
A28: Assets
A29: Current assets
A30: Cash
A31: Cash and cash equivalents | B31: 9815 | C31: 10746 | D31: 14259 | E31: 13844 | F31: 21120
A32: Short-term investments | B32: 16137 | C32: 18383 | D32: 26287 | E32: 11233 | F32: 20481
A33: Total cash | B33: 25952 | C33: 29129 | D33: 40546 | E33: 25077 | F33: 41601
A34: Receivables | B34: 5369 | C34: 10930 | D34: 13102 | E34: 17460 | F34: 16849
A35: Inventories | B35: 776 | C35: 791 | D35: 1764 | E35: 2111 | F35: 2349
A36: Deferred income taxes | B36: 2014 | C36: 2583 | D36: 3453 | E36: 4318 | F36: 5546
A37: Other current assets | B37: 10877 | C37: 14220 | D37: 14421 | E37: 19565 | F37: 23033
A38: Total current assets | B38: 44988 | C38: 57653 | D38: 73286 | E38: 68531 | F38: 89378
A39: Non-current assets
A40: Property, plant and equipment
A41: Gross property, plant and equipment | B41: 11768 | C41: 21887 | D41: 28519 | E41: 39015 | F41: 49257
A42: Accumulated Depreciation | B42: -3991 | C42: -6435 | D42: -11922 | E42: -18391 | F42: -26786
A43: Net property, plant and equipment | B43: 7777 | C43: 15452 | D43: 16597 | E43: 20624 | F43: 22471
A44: Equity and other investments | B44: 55618 | C44: 92122 | D44: 106215 | E44: 130162 | F44: 164065
A45: Goodwill | B45: 896 | C45: 1135 | D45: 1577 | E45: 4616 | F45: 5116
A46: Intangible assets | B46: 3536 | C46: 4224 | D46: 4179 | E46: 4142 | F46: 3893
A47: Other long-term assets | B47: 3556 | C47: 5478 | D47: 5146 | E47: 3764 | F47: 5556
A48: Total non-current assets | B48: 71383 | C48: 118411 | D48: 133714 | E48: 163308 | F48: 201101
A49: Total assets | B49: 116371 | C49: 176064 | D49: 207000 | E49: 231839 | F49: 290479
A50: Liabilities and stockholders' equity
A51: Liabilities
A52: Current liabilities
A53: Short-term debt | E53: 6308 | F53: 10999
A54: Accounts payable | B54: 14632 | C54: 21175 | D54: 22367 | E54: 30196 | F54: 35490
A55: Taxes payable | B55: 1140 | C55: 1535 | D55: 1200 | E55: 1209
A56: Accrued liabilities | B56: 8107 | C56: 8387 | D56: 5217 | E56: 7689 | F56: 25181
A57: Deferred revenues | B57: 4091 | C57: 5953 | D57: 7435 | E57: 9548 | F57: 8940
A58: Other current liabilities | C58: 1492 | D58: 7439 | E58: 8498
A59: Total current liabilities | B59: 27970 | C59: 38542 | D59: 43658 | E59: 63448 | F59: 80610
A60: Non-current liabilities
A61: Long-term debt | D61: 16960 | E61: 28987 | F61: 53463
A62: Deferred taxes liabilities | D62: 16489 | E62: 20259 | F62: 24062
A63: Deferred revenues | B63: 1686 | C63: 2648 | D63: 2625 | E63: 3031 | F63: 3624
A64: Other long-term liabilities | B64: 10100 | C64: 16664 | D64: 3719 | E64: 4567 | F64: 9365
A65: Total non-current liabilities | B65: 11786 | C65: 19312 | D65: 39793 | E65: 56844 | F65: 90514
A66: Total liabilities | B66: 39756 | C66: 57854 | D66: 83451 | E66: 120292 | F66: 171124
A67: Stockholders' equity
A68: Common stock | E68: 23313 | F68: 27416
A69: Additional paid-in capital | B69: 13331 | C69: 16422 | D69: 19764
A70: Retained earnings | B70: 62841 | C70: 101289 | D70: 104256 | E70: 87152 | F70: 92284
A71: Accumulated other comprehensive income | B71: 443 | C71: 499 | D71: -471 | E71: 1082 | F71: -345
A72: Total stockholders' equity | B72: 76615 | C72: 118210 | D72: 123549 | E72: 111547 | F72: 119355
A73: Total liabilities and stockholders' equity | B73: 116371 | C73: 176064 | D73: 207000 | E73: 231839 | F73: 290479
A75: APPLE INC (AAPL) Statement of CASH FLOW
A76: Fiscal year ends in September. USD in millions except per share data. | B76: 2011-09 | C76: 2012-09 | D76: 2013-09 | E76: 2014-09 | F76: 2015-09 | G76: TTM
A77: Cash Flows From Operating Activities
A78: Net income | B78: 25922 | C78: 41733 | D78: 37037 | E78: 39510 | F78: 53394 | G78: 53394
A79: Depreciation & amortization | B79: 1814 | C79: 3277 | D79: 6757 | E79: 7946 | F79: 11257 | G79: 11257
A80: Deferred income taxes | B80: 2868 | C80: 4405 | D80: 1141 | E80: 2347 | F80: 1382 | G80: 1382
A81: Stock based compensation | B81: 1168 | C81: 1740 | D81: 2253 | E81: 2863 | F81: 3586 | G81: 3586
A82: Accounts receivable | B82: 143 | C82: -5551 | D82: -2172 | E82: -4232 | F82: 611 | G82: 611
A83: Inventory | B83: 275 | C83: -15 | D83: -973 | E83: -76 | F83: -238 | G83: -238
A84: Accounts payable | B84: 2515 | C84: 4467 | D84: 2340 | E84: 5938 | F84: 5400 | G84: 5400
A85: Other working capital | B85: 2824 | C85: 800 | D85: 7283 | E85: 5417 | F85: 5874 | G85: 5874
A86: Net cash provided by operating activities | B86: 37529 | C86: 50856 | D86: 53666 | E86: 59713 | F86: 81266 | G86: 81266
A87: Cash Flows From Investing Activities
A88: Investments in property, plant, and equipment | B88: -4260 | C88: -8295 | D88: -8165 | E88: -9571 | F88: -11247 | G88: -11247
A89: Acquisitions, net | B89: -244 | C89: -350 | D89: -496 | E89: -3765 | F89: -343 | G89: -343
A90: Purchases of investments | B90: -102317 | C90: -151232 | D90: -148489 | E90: -217128 | F90: -166402 | G90: -166402
A91: Sales/Maturities of investments | B91: 69853 | C91: 112805 | D91: 124447 | E91: 208111 | F91: 121985 | G91: 121985
A92: Purchases of intangibles | B92: -3192 | C92: -1107 | D92: -911 | E92: -242 | F92: -241 | G92: -241
A93: Other investing activities | B93: -259 | C93: -48 | D93: -160 | E93: 16 | F93: -26 | G93: -26
A94: Net cash used for investing activities | B94: -40419 | C94: -48227 | D94: -33774 | E94: -22579 | F94: -56274 | G94: -56274
A95: Cash Flows From Financing Activities
A96: Debt issued | D96: 16896 | E96: 18266
A97: Common stock issued | B97: 831 | C97: 665 | D97: 530 | E97: 730 | F97: 543 | G97: 543
A98: Common stock repurchased | D98: -22860 | E98: -45000 | F98: -35253 | G98: -35253
A99: Dividend paid | C99: -2488 | D99: -10564 | E99: -11126 | F99: -11561 | G99: -11561
A100: Other financing activities | B100: 613 | C100: 125 | D100: -381 | E100: -419 | F100: 28555 | G100: 28555
A101: Net cash provided by (used for) financing activities | B101: 1444 | C101: -1698 | D101: -16379 | E101: -37549 | F101: -17716 | G101: -17716
A102: Net change in cash | B102: -1446 | C102: 931 | D102: 3513 | E102: -415 | F102: 7276 | G102: 7276
A103: Cash at beginning of period | B103: 11261 | C103: 9815 | D103: 10746 | E103: 14259 | F103: 13844 | G103: 13844
A104: Cash at end of period | B104: 9815 | C104: 10746 | D104: 14259 | E104: 13844 | F104: 21120 | G104: 21120
A105: Free Cash Flow
A106: Operating cash flow | B106: 37529 | C106: 50856 | D106: 53666 | E106: 59713 | F106: 81266 | G106: 81266
A107: Capital expenditure | B107: -7452 | C107: -9402 | D107: -9076 | E107: -9813 | F107: -11488 | G107: -11488
A108: Free cash flow | B108: 30077 | C108: 41454 | D108: 44590 | E108: 49900 | F108: 69778 | G108: 69778

Sheet Quarterly
A1: APPLE INC (AAPL) CashFlowFlag INCOME STATEMENT
A2: Fiscal year ends in September. USD in millions except per share data. | B2: 2014-09 | C2: 2014-12 | D2: 2015-03 | E2: 2015-06 | F2: 2015-09 | G2: TTM
A3: Revenue | B3: 42123 | C3: 74599 | D3: 58010 | E3: 49605 | F3: 51501 | G3: 233715
A4: Cost of revenue | B4: 26114 | C4: 44858 | D4: 34354 | E4: 29924 | F4: 30953 | G4: 140089
A5: Gross profit | B5: 16009 | C5: 29741 | D5: 23656 | E5: 19681 | F5: 20548 | G5: 93626
A6: Operating expenses | I6: 2009-07-22 | J6: APPLE INC (AAPL) 10-Q Quarterly Report for 2009 - 7
A7: Research and development | B7: 1686 | C7: 1895 | D7: 1918 | E7: 2034 | F7: 2220 | G7: 8067 | I7: 2010-01-25 | J7: APPLE INC (AAPL) 10-Q Quarterly Report for 2010 - 1
A8: Sales, General and administrative | B8: 3158 | C8: 3600 | D8: 3460 | E8: 3564 | F8: 3705 | G8: 14329 | I8: 2010-04-21 | J8: APPLE INC (AAPL) 10-Q Quarterly Report for 2010 - 4
A9: Total operating expenses | B9: 4844 | C9: 5495 | D9: 5378 | E9: 5598 | F9: 5925 | G9: 22396 | I9: 2010-07-21 | J9: APPLE INC (AAPL) 10-Q Quarterly Report for 2010 - 7
A10: Operating income | B10: 11165 | C10: 24246 | D10: 18278 | E10: 14083 | F10: 14623 | G10: 71230 | I10: 2011-01-19 | J10: APPLE INC (AAPL) 10-Q Quarterly Report for 2011 - 1
A11: Interest Expense | B11: 115 | C11: 131 | D11: 163 | E11: 201 | F11: 238 | G11: 733 | I11: 2011-04-21 | J11: APPLE INC (AAPL) 10-Q Quarterly Report for 2011 - 4
A12: Other income (expense) | B12: 422 | C12: 301 | D12: 449 | E12: 591 | F12: 677 | G12: 2018 | I12: 2011-07-20 | J12: APPLE INC (AAPL) 10-Q Quarterly Report for 2011 - 7
A13: Income before taxes | B13: 11472 | C13: 24416 | D13: 18564 | E13: 14473 | F13: 15062 | G13: 72515 | I13: 2012-01-25 | J13: APPLE INC (AAPL) 10-Q Quarterly Report for 2012 - 1
A14: Provision for income taxes | B14: 3005 | C14: 6392 | D14: 4995 | E14: 3796 | F14: 3938 | G14: 19121 | I14: 2012-04-25 | J14: APPLE INC (AAPL) 10-Q Quarterly Report for 2012 - 4
A15: Net income from continuing operations | B15: 8467 | C15: 18024 | D15: 13569 | E15: 10677 | F15: 11124 | G15: 53394 | I15: 2012-07-25 | J15: APPLE INC (AAPL) 10-Q Quarterly Report for 2012 - 7
A16: Net income | B16: 8467 | C16: 18024 | D16: 13569 | E16: 10677 | F16: 11124 | G16: 53394 | I16: 2013-01-24 | J16: APPLE INC (AAPL) 10-Q Quarterly Report for 2013 - 1
A17: Net income available to common shareholders | B17: 8467 | C17: 18024 | D17: 13569 | E17: 10677 | F17: 11124 | G17: 53394 | I17: 2013-04-24 | J17: APPLE INC (AAPL) 10-Q Quarterly Report for 2013 - 4
A18: Earnings per share | I18: 2013-07-24 | J18: APPLE INC (AAPL) 10-Q Quarterly Report for 2013 - 7
A19: Basic | B19: 1.43 | C19: 3.08 | D19: 2.34 | E19: 1.86 | F19: 1.97 | G19: 9.28 | I19: 2014-01-28 | J19: APPLE INC (AAPL) 10-Q Quarterly Report for 2014 - 1
A20: Diluted | B20: 1.42 | C20: 3.06 | D20: 2.33 | E20: 1.85 | F20: 1.96 | G20: 9.22 | I20: 2014-04-24 | J20: APPLE INC (AAPL) 10-Q Quarterly Report for 2014 - 4
A21: Weighted average shares outstanding | I21: 2014-07-23 | J21: APPLE INC (AAPL) 10-Q Quarterly Report for 2014 - 7
A22: Basic | B22: 5934 | C22: 5843 | D22: 5794 | E22: 5730 | F22: 5647 | G22: 5753 | I22: 2015-01-28 | J22: APPLE INC (AAPL) 10-Q Quarterly Report for 2015 - 1
A23: Diluted | B23: 5972 | C23: 5882 | D23: 5835 | E23: 5773 | F23: 5683 | G23: 5793 | I23: 2015-04-28 | J23: APPLE INC (AAPL) 10-Q Quarterly Report for 2015 - 4
A24: EBITDA | B24: 13556 | C24: 27122 | D24: 21206 | E24: 17758 | F24: 18419 | G24: 84505 | I24: 2015-07-22 | J24: APPLE INC (AAPL) 10-Q Quarterly Report for 2015 - 7
A26: APPLE INC (AAPL) CashFlowFlag BALANCE SHEET
A27: Fiscal year ends in September. USD in millions except per share data. | B27: 2014-09 | C27: 2014-12 | D27: 2015-03 | E27: 2015-06 | F27: 2015-09
A28: Assets
A29: Current assets
A30: Cash
A31: Cash and cash equivalents | B31: 13844 | C31: 19478 | D31: 14489 | E31: 15319 | F31: 21120
A32: Short-term investments | B32: 11233 | C32: 12985 | D32: 18607 | E32: 19384 | F32: 20481
A33: Total cash | B33: 25077 | C33: 32463 | D33: 33096 | E33: 34703 | F33: 41601
A34: Receivables | B34: 17460 | C34: 16709 | D34: 10905 | E34: 10370 | F34: 16849
A35: Inventories | B35: 2111 | C35: 2283 | D35: 2396 | E35: 2042 | F35: 2349
A36: Deferred income taxes | B36: 4318 | C36: 5046 | D36: 5141 | E36: 5010 | F36: 5546
A37: Other current assets | B37: 19565 | C37: 26902 | D37: 16353 | E37: 18828 | F37: 23033
A38: Total current assets | B38: 68531 | C38: 83403 | D38: 67891 | E38: 70953 | F38: 89378
A39: Non-current assets
A40: Property, plant and equipment
A41: Gross property, plant and equipment | B41: 39015 | C41: 40747 | D41: 42460 | E41: 45544 | F41: 49257
A42: Accumulated Depreciation | B42: -18391 | C42: -20355 | D42: -22309 | E42: -24395 | F42: -26786
A43: Net property, plant and equipment | B43: 20624 | C43: 20392 | D43: 20151 | E43: 21149 | F43: 22471
A44: Equity and other investments | B44: 130162 | C44: 145492 | D44: 160443 | E44: 168145 | F44: 164065
A45: Goodwill | B45: 4616 | C45: 4629 | D45: 4711 | E45: 5044 | F45: 5116
A46: Intangible assets | B46: 4142 | C46: 4370 | D46: 4061 | E46: 3779 | F46: 3893
A47: Other long-term assets | B47: 3764 | C47: 3608 | D47: 3937 | E47: 4081 | F47: 5556
A48: Total non-current assets | B48: 163308 | C48: 178491 | D48: 193303 | E48: 202198 | F48: 201101
A49: Total assets | B49: 231839 | C49: 261894 | D49: 261194 | E49: 273151 | F49: 290479
A50: Liabilities and stockholders' equity
A51: Liabilities
A52: Current liabilities
A53: Short-term debt | B53: 6308 | C53: 3899 | D53: 3799 | E53: 6999 | F53: 10999
A54: Accounts payable | B54: 30196 | C54: 38001 | D54: 23159 | E54: 26474 | F54: 35490
A55: Taxes payable | B55: 1209 | C55: 1642 | D55: 2017 | E55: 1566
A56: Accrued liabilities | B56: 7689 | C56: 8471 | D56: 7781 | E56: 8339 | F56: 25181
A57: Deferred revenues | B57: 9548 | C57: 10120 | D57: 8944 | E57: 9088 | F57: 8940
A58: Other current liabilities | B58: 8498 | C58: 11478 | D58: 13029 | E58: 12819
A59: Total current liabilities | B59: 63448 | C59: 73611 | D59: 58729 | E59: 65285 | F59: 80610
A60: Non-current liabilities
A61: Long-term debt | B61: 28987 | C61: 32504 | D61: 40072 | E61: 47419 | F61: 53463
A62: Deferred taxes liabilities | B62: 20259 | C62: 23371 | D62: 23825 | E62: 24539 | F62: 24062
A63: Deferred revenues | B63: 3031 | C63: 3480 | D63: 3571 | E63: 3474 | F63: 3624
A64: Other long-term liabilities | B64: 4567 | C64: 5600 | D64: 5991 | E64: 6757 | F64: 9365
A65: Total non-current liabilities | B65: 56844 | C65: 64955 | D65: 73459 | E65: 82189 | F65: 90514
A66: Total liabilities | B66: 120292 | C66: 138566 | D66: 132188 | E66: 147474 | F66: 171124
A67: Stockholders' equity
A68: Common stock | B68: 23313 | C68: 24187 | D68: 25376 | E68: 26327 | F68: 27416
A69: Retained earnings | B69: 87152 | C69: 97178 | D69: 100920 | E69: 98252 | F69: 92284
A70: Accumulated other comprehensive income | B70: 1082 | C70: 1963 | D70: 2710 | E70: 1098 | F70: -345
A71: Total stockholders' equity | B71: 111547 | C71: 123328 | D71: 129006 | E71: 125677 | F71: 119355
A72: Total liabilities and stockholders' equity | B72: 231839 | C72: 261894 | D72: 261194 | E72: 273151 | F72: 290479
A74: APPLE INC (AAPL) Statement of CASH FLOW
A75: Fiscal year ends in September. USD in millions except per share data. | B75: 2014-09 | C75: 2014-12 | D75: 2015-03 | E75: 2015-06 | F75: 2015-09 | G75: TTM
A76: Cash Flows From Operating Activities
A77: Net income | B77: 8467 | C77: 18024 | D77: 13569 | E77: 10677 | F77: 11124 | G77: 53394
A78: Depreciation & amortization | B78: 1969 | C78: 2575 | D78: 2479 | E78: 3084 | F78: 3119 | G78: 11257
A79: Deferred income taxes | B79: -807 | C79: 2197 | D79: -318 | E79: 941 | F79: -1438 | G79: 1382
A80: Stock based compensation | B80: 762 | C80: 888 | D80: 927 | E80: 856 | F80: 915 | G80: 3586
A81: Accounts receivable | B81: -6546 | C81: 751 | D81: 5804 | E81: 535 | F81: -6479 | G81: 611
A82: Inventory | B82: -246 | C82: -172 | D82: -113 | E82: 354 | F82: -307 | G82: -238
A83: Accounts payable | B83: 8469 | C83: 9003 | D83: -14431 | E83: 2165 | F83: 8663 | G83: 5400
A84: Other working capital | B84: 1182 | C84: 456 | D84: 11164 | E84: -3624 | F84: -2122 | G84: 5874
A85: Net cash provided by operating activities | B85: 13250 | C85: 33722 | D85: 19081 | E85: 14988 | F85: 13475 | G85: 81266
A86: Cash Flows From Investing Activities
A87: Investments in property, plant, and equipment | B87: -3826 | C87: -3217 | D87: -2369 | E87: -2043 | F87: -3618 | G87: -11247
A88: Acquisitions, net | B88: -2867 | C88: -23 | D88: -92 | E88: -115 | F88: -113 | G88: -343
A89: Purchases of investments | B89: -56466 | C89: -44915 | D89: -47608 | E89: -45001 | F89: -28878 | G89: -166402
A90: Sales/Maturities of investments | B90: 66173 | C90: 26973 | D90: 27822 | E90: 35756 | F90: 31434 | G90: 121985
A91: Purchases of intangibles | B91: -26 | C91: -48 | D91: -107 | E91: -46 | F91: -40 | G91: -241
A92: Other investing activities | B92: 9 | C92: 65 | D92: 23 | E92: 46 | F92: -160 | G92: -26
A93: Net cash used for investing activities | B93: 2997 | C93: -21165 | D93: -22331 | E93: -11403 | F93: -1375 | G93: -56274
A94: Cash Flows From Financing Activities
A95: Debt issued | B95: 6306 | C95: 3485 | D95: 7847 | E95: 9980
A96: Debt repayment | C96: -2409 | D96: -99
A97: Common stock issued | B97: 295 | C97: 80 | D97: 229 | E97: 15 | F97: 219 | G97: 543
A98: Common stock repurchased | B98: -17000 | C98: -5030 | D98: -6970 | E98: -10000 | F98: -13253 | G98: -35253
A99: Dividend paid | B99: -2829 | C99: -2801 | D99: -2743 | E99: -3053 | F99: -2964 | G99: -11561
A100: Other financing activities | B100: -2152 | C100: -248 | D100: -3 | E100: 303 | F100: 9699 | G100: 28555
A101: Net cash provided by (used for) financing activities | B101: -15380 | C101: -6923 | D101: -1739 | E101: -2755 | F101: -6299 | G101: -17716
A102: Net change in cash | B102: 867 | C102: 5634 | D102: -4989 | E102: 830 | F102: 5801 | G102: 7276
A103: Cash at beginning of period | B103: 12977 | C103: 13844 | D103: 19478 | E103: 14489 | F103: 15319 | G103: 13844
A104: Cash at end of period | B104: 13844 | C104: 19478 | D104: 14489 | E104: 15319 | F104: 21120 | G104: 21120
A105: Free Cash Flow
A106: Operating cash flow | B106: 13250 | C106: 33722 | D106: 19081 | E106: 14988 | F106: 13475 | G106: 81266
A107: Capital expenditure | B107: -3852 | C107: -3265 | D107: -2476 | E107: -2089 | F107: -3658 | G107: -11488
A108: Free cash flow | B108: 9398 | C108: 30457 | D108: 16605 | E108: 12899 | F108: 9817 | G108: 69778

Sheet Comps
A1: APPLE INC (AAPL) CashFlowFlag INCOME STATEMENT | I1: WHIRLPOOL CORP (WHR) CashFlowFlag INCOME STATEMENT | Q1: HARMAN INTERNATIONAL INDUSTRIES INC (HAR) CashFlowFlag INCOME STATEMENT | Y1: GOPRO INC CLASS A (GPRO) CashFlowFlag INCOME STATEMENT
A2: Fiscal year ends in September. USD in millions except per share data. | B2: 2011-09 | C2: 2012-09 | D2: 2013-09 | E2: 2014-09 | F2: 2015-09 | G2: TTM | I2: Fiscal year ends in December. USD in millions except per share data. | J2: 2010-12 | K2: 2011-12 | L2: 2012-12 | M2: 2013-12 | N2: 2014-12 | O2: TTM | Q2: Fiscal year ends in June. USD in millions except per share data. | R2: 2011-06 | S2: 2012-06 | T2: 2013-06 | U2: 2014-06 | V2: 2015-06 | W2: TTM | Y2: Fiscal year ends in December. USD in millions except per share data. | Z2: 2010-12 | AA2: 2011-12 | AB2: 2012-12 | AC2: 2013-12 | AD2: 2014-12 | AE2: TTM
A3: Revenue | B3: 108249 | C3: 156508 | D3: 170910 | E3: 182795 | F3: 233715 | G3: 233715 | I3: Revenue | J3: 18366 | K3: 18666 | L3: 18143 | M3: 18769 | N3: 19872 | O3: 21334 | Q3: Revenue | R3: 3772 | S3: 4364 | T3: 4298 | U3: 5348 | V3: 6155 | W3: 6357 | Y3: Revenue | AA3: 234 | AB3: 526 | AC3: 986 | AD3: 1394 | AE3: 1817
A4: Cost of revenue | B4: 64431 | C4: 87846 | D4: 106606 | E4: 112258 | F4: 140089 | G4: 140089 | I4: Cost of revenue | J4: 15652 | K4: 16089 | L4: 15250 | M4: 15471 | N4: 16477 | O4: 17620 | Q4: Cost of revenue | R4: 2785 | S4: 3180 | T4: 3194 | U4: 3892 | V4: 4338 | W4: 4467 | Y4: Cost of revenue | AA4: 112 | AB4: 299 | AC4: 624 | AD4: 767 | AE4: 969
A5: Gross profit | B5: 43818 | C5: 68662 | D5: 64304 | E5: 70537 | F5: 93626 | G5: 93626 | I5: Gross profit | J5: 2714 | K5: 2577 | L5: 2893 | M5: 3298 | N5: 3395 | O5: 3714 | Q5: Gross profit | R5: 987 | S5: 1184 | T5: 1104 | U5: 1457 | V5: 1817 | W5: 1890 | Y5: Gross profit | AA5: 123 | AB5: 227 | AC5: 362 | AD5: 627 | AE5: 849
A6: Operating expenses | I6: Operating expenses | Q6: Operating expenses | Y6: Operating expenses
A7: Research and development | B7: 2429 | C7: 3381 | D7: 4475 | E7: 6041 | F7: 8067 | G7: 8067 | I7: Sales, General and administrative | J7: 1604 | K7: 1621 | L7: 1757 | M7: 1828 | N7: 2038 | O7: 2277 | Q7: Sales, General and administrative | R7: 814 | S7: 884 | T7: 903 | U7: 1127 | V7: 1348 | W7: 1405 | Y7: Research and development | AA7: 9 | AB7: 36 | AC7: 74 | AD7: 152 | AE7: 221
A8: Sales, General and administrative | B8: 7599 | C8: 10040 | D8: 10830 | E8: 11993 | F8: 14329 | G8: 14329 | I8: Restructuring, merger and acquisition | J8: 74 | K8: 136 | L8: 237 | M8: 196 | N8: 136 | O8: 180 | Q8: Other operating expenses | R8: -17 | S8: 0 | Y8: Sales, General and administrative | AA8: 75 | AB8: 138 | AC8: 189 | AD8: 288 | AE8: 357
A9: Total operating expenses | B9: 10028 | C9: 13421 | D9: 15305 | E9: 18034 | F9: 22396 | G9: 22396 | I9: Other operating expenses | J9: 28 | K9: 28 | L9: 30 | M9: 25 | N9: 33 | O9: 71 | Q9: Total operating expenses | R9: 797 | S9: 884 | T9: 903 | U9: 1127 | V9: 1348 | W9: 1405 | Y9: Total operating expenses | AA9: 84 | AB9: 174 | AC9: 263 | AD9: 440 | AE9: 579
A10: Operating income | B10: 33790 | C10: 55241 | D10: 48999 | E10: 52503 | F10: 71230 | G10: 71230 | I10: Total operating expenses | J10: 1706 | K10: 1785 | L10: 2024 | M10: 2049 | N10: 2207 | O10: 2528 | Q10: Operating income | R10: 190 | S10: 300 | T10: 201 | U10: 330 | V10: 470 | W10: 485 | Y10: Operating income | AA10: 39 | AB10: 54 | AC10: 99 | AD10: 187 | AE10: 270
A11: Interest Expense | D11: 136 | E11: 384 | F11: 733 | G11: 733 | I11: Operating income | J11: 1008 | K11: 792 | L11: 869 | M11: 1249 | N11: 1188 | O11: 1186 | Q11: Interest Expense | T11: 15 | Y11: Interest Expense | AA11: 0 | AB11: 0 | AC11: 6
A12: Other income (expense) | B12: 415 | C12: 522 | D12: 1292 | E12: 1364 | F12: 2018 | G12: 2018 | I12: Interest Expense | J12: 225 | K12: 213 | L12: 311 | M12: 177 | N12: 307 | O12: 266 | Q12: Other income (expense) | R12: -30 | S12: -39 | T12: -12 | U12: -22 | V12: -23 | W12: -29 | Y12: Other income (expense) | AA12: 0 | AB12: 0 | AC12: -1 | AD12: -6 | AE12: -4
A13: Income before taxes | B13: 34205 | C13: 55763 | D13: 50155 | E13: 53483 | F13: 72515 | G13: 72515 | I13: Other income (expense) | J13: -197 | K13: -607 | M13: -155 | Q13: Income before taxes | R13: 160 | S13: 261 | T13: 174 | U13: 307 | V13: 446 | W13: 457 | Y13: Income before taxes | AA13: 39 | AB13: 53 | AC13: 91 | AD13: 181 | AE13: 266
A14: Provision for income taxes | B14: 8283 | C14: 14030 | D14: 13118 | E14: 13973 | F14: 19121 | G14: 19121 | I14: Income before taxes | J14: 586 | K14: -28 | L14: 558 | M14: 917 | N14: 881 | O14: 920 | Q14: Provision for income taxes | R14: 24 | S14: -68 | T14: 32 | U14: 73 | V14: 103 | W14: 109 | Y14: Provision for income taxes | AA14: 14 | AB14: 21 | AC14: 31 | AD14: 53 | AE14: 73
A15: Net income from continuing operations | B15: 25922 | C15: 41733 | D15: 37037 | E15: 39510 | F15: 53394 | G15: 53394 | I15: Provision for income taxes | J15: -64 | K15: -436 | L15: 133 | M15: 68 | N15: 189 | O15: 179 | Q15: Other income | T15: 0 | U15: 0 | V15: 0 | W15: 0 | Y15: Net income from continuing operations | AA15: 25 | AB15: 32 | AC15: 61 | AD15: 128 | AE15: 193
A16: Net income | B16: 25922 | C16: 41733 | D16: 37037 | E16: 39510 | F16: 53394 | G16: 53394 | I16: Net income from continuing operations | J16: 650 | K16: 408 | L16: 425 | M16: 849 | N16: 692 | O16: 741 | Q16: Net income from continuing operations | R16: 136 | S16: 330 | T16: 142 | U16: 235 | V16: 343 | W16: 348 | Y16: Net income | AA16: 25 | AB16: 32 | AC16: 61 | AD16: 128 | AE16: 193
A17: Net income available to common shareholders | B17: 25922 | C17: 41733 | D17: 37037 | E17: 39510 | F17: 53394 | G17: 53394 | I17: Other | J17: -31 | K17: -18 | L17: -24 | M17: -22 | N17: -42 | O17: -57 | Q17: Other | U17: 0 | V17: 0 | W17: -1 | Y17: Preferred dividend | AA17: 6 | AB17: 27 | AC17: 17 | AD17: 17 | AE17: 15
A18: Earnings per share | I18: Net income | J18: 619 | K18: 390 | L18: 401 | M18: 827 | N18: 650 | O18: 684 | Q18: Net income | R18: 136 | S18: 330 | T18: 142 | U18: 235 | V18: 343 | W18: 347 | Y18: Net income available to common shareholders | AA18: 19 | AB18: 5 | AC18: 44 | AD18: 112 | AE18: 177
A19: Basic | B19: 4.01 | C19: 6.38 | D19: 5.72 | E19: 6.49 | F19: 9.28 | G19: 9.28 | I19: Net income available to common shareholders | J19: 619 | K19: 390 | L19: 401 | M19: 827 | N19: 650 | O19: 684 | Q19: Net income available to common shareholders | R19: 136 | S19: 330 | T19: 142 | U19: 235 | V19: 343 | W19: 347 | Y19: Earnings per share
A20: Diluted | B20: 3.95 | C20: 6.31 | D20: 5.68 | E20: 6.45 | F20: 9.22 | G20: 9.22 | I20: Earnings per share | Q20: Earnings per share | Y20: Basic | AC20: 0.54 | AD20: 1.07 | AE20: 1.34
A21: Weighted average shares outstanding | I21: Basic | J21: 8.12 | K21: 5.07 | L21: 5.14 | M21: 10.42 | N21: 8.3 | O21: 8.69 | Q21: Basic | R21: 1.91 | S21: 4.62 | T21: 2.06 | U21: 3.4 | V21: 4.89 | W21: 4.9 | Y21: Diluted | AC21: 0.47 | AD21: 0.92 | AE21: 1.2
A22: Basic | B22: 6470 | C22: 6544 | D22: 6477 | E22: 6086 | F22: 5753 | G22: 5753 | I22: Diluted | J22: 7.97 | K22: 4.99 | L22: 5.06 | M22: 10.24 | N22: 8.17 | O22: 8.55 | Q22: Diluted | R22: 1.9 | S22: 4.57 | T22: 2.04 | U22: 3.36 | V22: 4.84 | W22: 4.85 | Y22: Weighted average shares outstanding
A23: Diluted | B23: 6557 | C23: 6617 | D23: 6522 | E23: 6123 | F23: 5793 | G23: 5793 | I23: Weighted average shares outstanding | Q23: Weighted average shares outstanding | Y23: Basic | AC23: 112 | AD23: 104 | AE23: 132
A24: EBITDA | B24: 35604 | C24: 58518 | D24: 57048 | E24: 61813 | F24: 84505 | G24: 84505 | I24: Basic | J24: 76 | K24: 77 | L24: 78 | M24: 79 | N24: 78 | O24: 79 | Q24: Basic | R24: 71 | S24: 71 | T24: 69 | U24: 69 | V24: 70 | W24: 71 | Y24: Diluted | AC24: 129 | AD24: 124 | AE24: 147
I25: Diluted | J25: 78 | K25: 78 | L25: 79 | M25: 81 | N25: 80 | O25: 80 | Q25: Diluted | R25: 72 | S25: 72 | T25: 70 | U25: 70 | V25: 71 | W25: 71 | Y25: EBITDA | AA25: 40 | AB25: 58 | AC25: 109 | AD25: 205 | AE25: 294
A26: APPLE INC (AAPL) CashFlowFlag BALANCE SHEET | I26: EBITDA | J26: 1366 | K26: 743 | L26: 1420 | M26: 1634 | N26: 1748 | O26: 1845 | Q26: EBITDA | R26: 313 | S26: 422 | T26: 318 | U26: 462 | V26: 639 | W26: 674
A27: Fiscal year ends in September. USD in millions except per share data. | B27: 2011-09 | C27: 2012-09 | D27: 2013-09 | E27: 2014-09 | F27: 2015-09 | Y27: GOPRO INC CLASS A (GPRO) CashFlowFlag BALANCE SHEET
A28: Assets | I28: WHIRLPOOL CORP (WHR) CashFlowFlag BALANCE SHEET | Q28: HARMAN INTERNATIONAL INDUSTRIES INC (HAR) CashFlowFlag BALANCE SHEET | Y28: Fiscal year ends in December. USD in millions except per share data. | Z28: 2010-12 | AA28: 2011-12 | AB28: 2012-12 | AC28: 2013-12 | AD28: 2014-12
A29: Current assets | I29: Fiscal year ends in December. USD in millions except per share data. | J29: 2010-12 | K29: 2011-12 | L29: 2012-12 | M29: 2013-12 | N29: 2014-12 | Q29: Fiscal year ends in June. USD in millions except per share data. | R29: 2011-06 | S29: 2012-06 | T29: 2013-06 | U29: 2014-06 | V29: 2015-06 | Y29: Assets
A30: Cash | I30: Assets | Q30: Assets | Y30: Current assets
A31: Cash and cash equivalents | B31: 9815 | C31: 10746 | D31: 14259 | E31: 13844 | F31: 21120 | I31: Current assets | Q31: Current assets | Y31: Cash
A32: Short-term investments | B32: 16137 | C32: 18383 | D32: 26287 | E32: 11233 | F32: 20481 | I32: Cash | Q32: Cash | Y32: Cash and cash equivalents | AB32: 36 | AC32: 101 | AD32: 320
A33: Total cash | B33: 25952 | C33: 29129 | D33: 40546 | E33: 25077 | F33: 41601 | I33: Cash and cash equivalents | J33: 1368 | K33: 1109 | L33: 1168 | M33: 1380 | N33: 1026 | Q33: Cash and cash equivalents | R33: 604 | S33: 617 | T33: 454 | U33: 581 | V33: 650 | Y33: Short-term investments | AD33: 102
A34: Receivables | B34: 5369 | C34: 10930 | D34: 13102 | E34: 17460 | F34: 16849 | I34: Total cash | J34: 1368 | K34: 1109 | L34: 1168 | M34: 1380 | N34: 1026 | Q34: Short-term investments | R34: 317 | S34: 203 | T34: 10 | Y34: Total cash | AB34: 36 | AC34: 101 | AD34: 422
A35: Inventories | B35: 776 | C35: 791 | D35: 1764 | E35: 2111 | F35: 2349 | I35: Receivables | J35: 2278 | K35: 2105 | L35: 2038 | M35: 2005 | N35: 2768 | Q35: Total cash | R35: 921 | S35: 820 | T35: 464 | U35: 581 | V35: 650 | Y35: Receivables | AB35: 80 | AC35: 123 | AD35: 184
A36: Deferred income taxes | B36: 2014 | C36: 2583 | D36: 3453 | E36: 4318 | F36: 5546 | I36: Inventories | J36: 2792 | K36: 2354 | L36: 2354 | M36: 2408 | N36: 2740 | Q36: Receivables | R36: 579 | S36: 583 | T36: 723 | U36: 895 | V36: 1024 | Y36: Inventories | AB36: 60 | AC36: 112 | AD36: 153
A37: Other current assets | B37: 10877 | C37: 14220 | D37: 14421 | E37: 19565 | F37: 23033 | I37: Deferred income taxes | J37: 204 | K37: 248 | L37: 558 | M37: 549 | N37: 417 | Q37: Inventories | R37: 423 | S37: 428 | T37: 550 | U37: 662 | V37: 694 | Y37: Deferred income taxes | AD37: 24
A38: Total current assets | B38: 44988 | C38: 57653 | D38: 73286 | E38: 68531 | F38: 89378 | I38: Prepaid expenses | J38: 673 | K38: 606 | L38: 709 | M38: 680 | N38: 1147 | Q38: Other current assets | R38: 185 | S38: 285 | T38: 352 | U38: 321 | V38: 582 | Y38: Prepaid expenses | AB38: 22 | AC38: 22 | AD38: 32
A39: Non-current assets | I39: Total current assets | J39: 7315 | K39: 6422 | L39: 6827 | M39: 7022 | N39: 8098 | Q39: Total current assets | R39: 2108 | S39: 2116 | T39: 2089 | U39: 2459 | V39: 2949 | Y39: Other current assets | AD39: 7
A40: Property, plant and equipment | I40: Non-current assets | Q40: Non-current assets | Y40: Total current assets | AB40: 199 | AC40: 358 | AD40: 823
A41: Gross property, plant and equipment | B41: 11768 | C41: 21887 | D41: 28519 | E41: 39015 | F41: 49257 | I41: Property, plant and equipment | Q41: Property, plant and equipment | Y41: Non-current assets
A42: Accumulated Depreciation | B42: -3991 | C42: -6435 | D42: -11922 | E42: -18391 | F42: -26786 | I42: Gross property, plant and equipment | J42: 9794 | K42: 9248 | L42: 9104 | M42: 9319 | N42: 9940 | Q42: Gross property, plant and equipment | R42: 1374 | S42: 1295 | T42: 1401 | U42: 1582 | V42: 1571 | Y42: Property, plant and equipment
A43: Net property, plant and equipment | B43: 7777 | C43: 15452 | D43: 16597 | E43: 20624 | F43: 22471 | I43: Accumulated Depreciation | J43: -6660 | K43: -6146 | L43: -6070 | M43: -6278 | N43: -5959 | Q43: Accumulated Depreciation | R43: -903 | S43: -864 | T43: -976 | U43: -1072 | V43: -1019 | Y43: Gross property, plant and equipment | AB43: 26 | AC43: 47 | AD43: 71
A44: Equity and other investments | B44: 55618 | C44: 92122 | D44: 106215 | E44: 130162 | F44: 164065 | I44: Net property, plant and equipment | J44: 3134 | K44: 3102 | L44: 3034 | M44: 3041 | N44: 3981 | Q44: Net property, plant and equipment | R44: 470 | S44: 430 | T44: 425 | U44: 510 | V44: 552 | Y44: Accumulated Depreciation | AB44: -3 | AC44: -14 | AD44: -30
A45: Goodwill | B45: 896 | C45: 1135 | D45: 1577 | E45: 4616 | F45: 5116 | I45: Goodwill | J45: 1731 | K45: 1727 | L45: 1727 | M45: 1724 | N45: 2807 | Q45: Goodwill | R45: 119 | S45: 181 | T45: 234 | U45: 541 | V45: 1287 | Y45: Net property, plant and equipment | AB45: 22 | AC45: 32 | AD45: 42
A46: Intangible assets | B46: 3536 | C46: 4224 | D46: 4179 | E46: 4142 | F46: 3893 | I46: Intangible assets | J46: 1789 | K46: 1757 | L46: 1722 | M46: 1702 | N46: 2803 | Q46: Intangible assets | U46: 182 | V46: 670 | Y46: Goodwill | AB46: 4 | AC46: 14 | AD46: 14
A47: Other long-term assets | B47: 3556 | C47: 5478 | D47: 5146 | E47: 3764 | F47: 5556 | I47: Deferred income taxes | J47: 1305 | K47: 1893 | L47: 1832 | M47: 1764 | N47: 1900 | Q47: Deferred income taxes | R47: 230 | S47: 309 | T47: 261 | U47: 171 | V47: 44 | Y47: Intangible assets | AB47: 4 | AC47: 3 | AD47: 7
A48: Total non-current assets | B48: 71383 | C48: 118411 | D48: 133714 | E48: 163308 | F48: 201101 | I48: Other long-term assets | J48: 310 | K48: 280 | L48: 254 | M48: 291 | N48: 413 | Q48: Other long-term assets | R48: 131 | S48: 133 | T48: 226 | U48: 263 | V48: 428 | Y48: Deferred income taxes | AD48: 9
A49: Total assets | B49: 116371 | C49: 176064 | D49: 207000 | E49: 231839 | F49: 290479 | I49: Total non-current assets | J49: 8269 | K49: 8759 | L49: 8569 | M49: 8522 | N49: 11904 | Q49: Total non-current assets | R49: 950 | S49: 1053 | T49: 1147 | U49: 1667 | V49: 2981 | Y49: Other long-term assets | AB49: 17 | AC49: 32 | AD49: 23
A50: Liabilities and stockholders' equity | I50: Total assets | J50: 15584 | K50: 15181 | L50: 15396 | M50: 15544 | N50: 20002 | Q50: Total assets | R50: 3058 | S50: 3169 | T50: 3236 | U50: 4126 | V50: 5930 | Y50: Total non-current assets | AB50: 48 | AC50: 82 | AD50: 95
A51: Liabilities | I51: Liabilities and stockholders' equity | Q51: Liabilities and stockholders' equity | Y51: Total assets | AB51: 247 | AC51: 440 | AD51: 918
A52: Current liabilities | I52: Liabilities | Q52: Liabilities | Y52: Liabilities and stockholders' equity
A53: Short-term debt | E53: 6308 | F53: 10999 | I53: Current liabilities | Q53: Current liabilities | Y53: Liabilities
A54: Accounts payable | B54: 14632 | C54: 21175 | D54: 22367 | E54: 30196 | F54: 35490 | I54: Short-term debt | J54: 314 | K54: 362 | L54: 517 | M54: 617 | N54: 803 | Q54: Short-term debt | R54: 2 | S54: 396 | T54: 35 | U54: 39 | V54: 6 | Y54: Current liabilities
A55: Taxes payable | B55: 1140 | C55: 1535 | D55: 1200 | E55: 1209 | I55: Accounts payable | J55: 3660 | K55: 3512 | L55: 3698 | M55: 3865 | N55: 4730 | Q55: Accounts payable | R55: 473 | S55: 506 | T55: 498 | U55: 698 | V55: 919 | Y55: Short-term debt | AB55: 16 | AC55: 60
A56: Accrued liabilities | B56: 8107 | C56: 8387 | D56: 5217 | E56: 7689 | F56: 25181 | I56: Accrued liabilities | J56: 1564 | K56: 1745 | L56: 1631 | M56: 1607 | N56: 2024 | Q56: Taxes payable | R56: 13 | S56: 15 | T56: 13 | U56: 27 | V56: 76 | Y56: Accounts payable | AB56: 54 | AC56: 126 | AD56: 126
A57: Deferred revenues | B57: 4091 | C57: 5953 | D57: 7435 | E57: 9548 | F57: 8940 | I57: Other current liabilities | J57: 611 | K57: 678 | L57: 664 | M57: 705 | N57: 846 | Q57: Accrued liabilities | R57: 559 | S57: 465 | T57: 531 | U57: 722 | V57: 1120 | Y57: Taxes payable | AB57: 6 | AC57: 27 | AD57: 3
A58: Other current liabilities | C58: 1492 | D58: 7439 | E58: 8498 | I58: Total current liabilities | J58: 6149 | K58: 6297 | L58: 6510 | M58: 6794 | N58: 8403 | Q58: Total current liabilities | R58: 1048 | S58: 1382 | T58: 1078 | U58: 1486 | V58: 2120 | Y58: Accrued liabilities | AB58: 43 | AC58: 74 | AD58: 111
A59: Total current liabilities | B59: 27970 | C59: 38542 | D59: 43658 | E59: 63448 | F59: 80610 | I59: Non-current liabilities | Q59: Non-current liabilities | Y59: Deferred revenues | AB59: 9 | AC59: 9 | AD59: 19
A60: Non-current liabilities | I60: Long-term debt | J60: 2195 | K60: 2129 | L60: 1944 | M60: 1846 | N60: 3544 | Q60: Long-term debt | R60: 378 | T60: 255 | U60: 519 | V60: 1081 | Y60: Other current liabilities | AB60: 2 | AC60: 4
A61: Long-term debt | D61: 16960 | E61: 28987 | F61: 53463 | I61: Pensions and other benefits | J61: 2129 | K61: 1917 | L61: 2058 | M61: 1388 | N61: 1569 | Q61: Pensions and other benefits | S61: 168 | T61: 168 | U61: 186 | V61: 187 | Y61: Total current liabilities | AB61: 129 | AC61: 301 | AD61: 259
A62: Deferred taxes liabilities | D62: 16489 | E62: 20259 | F62: 24062 | I62: Minority interest | J62: 94 | K62: 99 | L62: 107 | M62: 110 | N62: 911 | Q62: Minority interest | U62: 0 | V62: 18 | Y62: Non-current liabilities
A63: Deferred revenues | B63: 1686 | C63: 2648 | D63: 2625 | E63: 3031 | F63: 3624 | I63: Other long-term liabilities | J63: 791 | K63: 558 | L63: 517 | M63: 482 | N63: 690 | Q63: Other long-term liabilities | R63: 209 | S63: 90 | T63: 91 | U63: 141 | V63: 149 | Y63: Long-term debt | AB63: 114 | AC63: 53
A64: Other long-term liabilities | B64: 10100 | C64: 16664 | D64: 3719 | E64: 4567 | F64: 9365 | I64: Total non-current liabilities | J64: 5209 | K64: 4703 | L64: 4626 | M64: 3826 | N64: 6714 | Q64: Total non-current liabilities | R64: 587 | S64: 258 | T64: 513 | U64: 847 | V64: 1435 | Y64: Other long-term liabilities | AB64: 84 | AC64: 91 | AD64: 18
A65: Total non-current liabilities | B65: 11786 | C65: 19312 | D65: 39793 | E65: 56844 | F65: 90514 | I65: Total liabilities | J65: 11358 | K65: 11000 | L65: 11136 | M65: 10620 | N65: 15117 | Q65: Total liabilities | R65: 1635 | S65: 1640 | T65: 1591 | U65: 2333 | V65: 3555 | Y65: Total non-current liabilities | AB65: 197 | AC65: 144 | AD65: 18
A66: Total liabilities | B66: 39756 | C66: 57854 | D66: 83451 | E66: 120292 | F66: 171124 | I66: Stockholders' equity | Q66: Stockholders' equity | Y66: Total liabilities | AB66: 326 | AC66: 445 | AD66: 276
A67: Stockholders' equity | I67: Common stock | J67: 106 | K67: 106 | L67: 108 | M67: 109 | N67: 110 | Q67: Common stock | R67: 1 | S67: 1 | T67: 1 | U67: 1 | V67: 1 | Y67: Stockholders' equity
A68: Common stock | E68: 23313 | F68: 27416 | I68: Additional paid-in capital | J68: 2156 | K68: 2201 | L68: 2313 | M68: 2453 | N68: 2555 | Q68: Additional paid-in capital | R68: 915 | S68: 944 | T68: 972 | U68: 1040 | V68: 1365 | Y68: Common stock | AB68: 0 | AC68: 0 | AD68: 533
A69: Additional paid-in capital | B69: 13331 | C69: 16422 | D69: 19764 | I69: Retained earnings | J69: 4680 | K69: 4922 | L69: 5147 | M69: 5784 | N69: 6209 | Q69: Retained earnings | R69: 1418 | S69: 1726 | T69: 1827 | U69: 1979 | V69: 2230 | Y69: Additional paid-in capital | AB69: 0 | AC69: 15
A70: Retained earnings | B70: 62841 | C70: 101289 | D70: 104256 | E70: 87152 | F70: 92284 | I70: Treasury stock | J70: -1823 | K70: -1822 | L70: -1777 | M70: -2124 | N70: -2149 | Q70: Treasury stock | R70: -1048 | S70: -1172 | T70: -1177 | U70: -1268 | V70: -1233 | Y70: Retained earnings | AB70: -80 | AC70: -20 | AD70: 108
A71: Accumulated other comprehensive income | B71: 443 | C71: 499 | D71: -471 | E71: 1082 | F71: -345 | I71: Accumulated other comprehensive income | J71: -893 | K71: -1226 | L71: -1531 | M71: -1298 | N71: -1840 | Q71: Accumulated other comprehensive income | R71: 137 | S71: 30 | T71: 22 | U71: 40 | V71: 11 | Y71: Total stockholders' equity | AB71: -80 | AC71: -5 | AD71: 641
A72: Total stockholders' equity | B72: 76615 | C72: 118210 | D72: 123549 | E72: 111547 | F72: 119355 | I72: Total stockholders' equity | J72: 4226 | K72: 4181 | L72: 4260 | M72: 4924 | N72: 4885 | Q72: Total stockholders' equity | R72: 1424 | S72: 1530 | T72: 1645 | U72: 1793 | V72: 2375 | Y72: Total liabilities and stockholders' equity | AB72: 247 | AC72: 440 | AD72: 918
A73: Total liabilities and stockholders' equity | B73: 116371 | C73: 176064 | D73: 207000 | E73: 231839 | F73: 290479 | I73: Total liabilities and stockholders' equity | J73: 15584 | K73: 15181 | L73: 15396 | M73: 15544 | N73: 20002 | Q73: Total liabilities and stockholders' equity | R73: 3058 | S73: 3169 | T73: 3236 | U73: 4126 | V73: 5930
Y74: GOPRO INC CLASS A (GPRO) Statement of CASH FLOW
A75: APPLE INC (AAPL) Statement of CASH FLOW | I75: WHIRLPOOL CORP (WHR) Statement of CASH FLOW | Q75: HARMAN INTERNATIONAL INDUSTRIES INC (HAR) Statement of CASH FLOW | Y75: Fiscal year ends in December. USD in millions except per share data. | Z75: 2010-12 | AA75: 2011-12 | AB75: 2012-12 | AC75: 2013-12 | AD75: 2014-12 | AE75: TTM
A76: Fiscal year ends in September. USD in millions except per share data. | B76: 2011-09 | C76: 2012-09 | D76: 2013-09 | E76: 2014-09 | F76: 2015-09 | G76: TTM | I76: Fiscal year ends in December. USD in millions except per share data. | J76: 2010-12 | K76: 2011-12 | L76: 2012-12 | M76: 2013-12 | N76: 2014-12 | O76: TTM | Q76: Fiscal year ends in June. USD in millions except per share data. | R76: 2011-06 | S76: 2012-06 | T76: 2013-06 | U76: 2014-06 | V76: 2015-06 | W76: TTM | Y76: Cash Flows From Operating Activities
A77: Cash Flows From Operating Activities | I77: Cash Flows From Operating Activities | Q77: Cash Flows From Operating Activities | Y77: Net income | AA77: 25 | AB77: 32 | AC77: 61 | AD77: 128 | AE77: 193
A78: Net income | B78: 25922 | C78: 41733 | D78: 37037 | E78: 39510 | F78: 53394 | G78: 53394 | I78: Net income | J78: 650 | K78: 408 | L78: 425 | M78: 849 | N78: 692 | O78: 741 | Q78: Net income | R78: 136 | S78: 330 | T78: 142 | U78: 235 | V78: 343 | W78: 348 | Y78: Depreciation & amortization | AA78: 2 | AB78: 4 | AC78: 12 | AD78: 18 | AE78: 25
A79: Depreciation & amortization | B79: 1814 | C79: 3277 | D79: 6757 | E79: 7946 | F79: 11257 | G79: 11257 | I79: Depreciation & amortization | J79: 555 | K79: 558 | L79: 551 | M79: 540 | N79: 560 | O79: 659 | Q79: Depreciation & amortization | R79: 123 | S79: 122 | T79: 128 | U79: 132 | V79: 169 | W79: 189 | Y79: Amortization of debt discount/premium and issuance costs | AD79: 2
A80: Deferred income taxes | B80: 2868 | C80: 4405 | D80: 1141 | E80: 2347 | F80: 1382 | G80: 1382 | I80: Accounts receivable | J80: 187 | K80: -15 | L80: 47 | M80: -65 | N80: -90 | O80: -193 | Q80: Deferred income taxes | R80: -9 | S80: -99 | T80: 16 | U80: 31 | V80: 32 | W80: 20 | Y80: Deferred income taxes | AA80: -7 | AB80: -2 | AC80: -8 | AD80: -17 | AE80: -20
A81: Stock based compensation | B81: 1168 | C81: 1740 | D81: 2253 | E81: 2863 | F81: 3586 | G81: 3586 | I81: Inventory | J81: -595 | K81: 283 | L81: -7 | M81: -86 | N81: 40 | O81: 42 | Q81: Stock based compensation | R81: 18 | S81: 17 | T81: 18 | U81: 29 | V81: 35 | W81: 32 | Y81: Stock based compensation | AA81: 9 | AB81: 9 | AC81: 11 | AD81: 71 | AE81: 82
A82: Accounts receivable | B82: 143 | C82: -5551 | D82: -2172 | E82: -4232 | F82: 611 | G82: 611 | I82: Accounts payable | J82: 341 | K82: 25 | L82: 240 | M82: 275 | N82: 359 | O82: 27 | Q82: Inventory | R82: -26 | S82: -37 | T82: -73 | U82: -67 | V82: -89 | W82: -139 | Y82: Accounts receivable | AA82: -20 | AB82: -54 | AC82: -43 | AD82: -62 | AE82: -27
A83: Inventory | B83: 275 | C83: -15 | D83: -973 | E83: -76 | F83: -238 | G83: -238 | I83: Accrued liabilities | J83: -22 | K83: -266 | L83: -240 | M83: -156 | N83: -292 | O83: -117 | Q83: Accounts payable | R83: 50 | S83: 62 | T83: -23 | U83: 148 | V83: 274 | W83: 154 | Y83: Inventory | AA83: -13 | AB83: -44 | AC83: -56 | AD83: -45 | AE83: -176
A84: Accounts payable | B84: 2515 | C84: 4467 | D84: 2340 | E84: 5938 | F84: 5400 | G84: 5400 | I84: Income taxes payable | J84: -94 | K84: -573 | L84: -68 | M84: -105 | N84: 49 | O84: -35 | Q84: Accrued liabilities | R84: 11 | S84: -7 | T84: 41 | U84: 149 | V84: 81 | W84: 103 | Y84: Prepaid expenses | AA84: -8 | AB84: -9 | AC84: -15 | AD84: -30 | AE84: -25
A85: Other working capital | B85: 2824 | C85: 800 | D85: 7283 | E85: 5417 | F85: 5874 | G85: 5874 | I85: Other working capital | J85: 122 | K85: -53 | L85: 88 | M85: 36 | N85: 152 | O85: 380 | Q85: Income taxes payable | R85: 5 | S85: 4 | T85: -3 | U85: 13 | V85: 53 | W85: 57 | Y85: Other working capital | AA85: 27 | AB85: 72 | AC85: 136 | AD85: 104 | AE85: 205
A86: Net cash provided by operating activities | B86: 37529 | C86: 50856 | D86: 53666 | E86: 59713 | F86: 81266 | G86: 81266 | I86: Other non-cash items | J86: -66 | K86: 163 | L86: -340 | M86: -26 | N86: 9 | O86: -54 | Q86: Other working capital | R86: 3 | S86: -143 | T86: -181 | U86: -78 | V86: -344 | W86: -378 | Y86: Other non-cash items | AA86: 1 | AB86: -1 | AC86: 6 | AD86: -72 | AE86: -76
A87: Cash Flows From Investing Activities | I87: Net cash provided by operating activities | J87: 1078 | K87: 530 | L87: 696 | M87: 1262 | N87: 1479 | O87: 1450 | Q87: Other non-cash items | R87: 21 | S87: 21 | T87: -23 | U87: 1 | V87: 0 | W87: 2 | Y87: Net cash provided by operating activities | AA87: 15 | AB87: 8 | AC87: 102 | AD87: 97 | AE87: 180
A88: Investments in property, plant, and equipment | B88: -4260 | C88: -8295 | D88: -8165 | E88: -9571 | F88: -11247 | G88: -11247 | I88: Cash Flows From Investing Activities | Q88: Net cash provided by operating activities | R88: 332 | S88: 269 | T88: 42 | U88: 592 | V88: 553 | W88: 387 | Y88: Cash Flows From Investing Activities
A89: Acquisitions, net | B89: -244 | C89: -350 | D89: -496 | E89: -3765 | F89: -343 | G89: -343 | I89: Investments in property, plant, and equipment | J89: -620 | K89: -608 | L89: -476 | M89: -578 | N89: -720 | O89: -689 | Q89: Cash Flows From Investing Activities | Y89: Investments in property, plant, and equipment | AA89: -2 | AB89: -18 | AC89: -18 | AD89: -27 | AE89: -37
A90: Purchases of investments | B90: -102317 | C90: -151232 | D90: -148489 | E90: -217128 | F90: -166402 | G90: -166402 | I90: Property, plant, and equipment reductions | L90: 10 | Q90: Investments in property, plant, and equipment | R90: -108 | S90: -113 | T90: -102 | U90: -157 | V90: -192 | W90: -195 | Y90: Property, plant, and equipment reductions | AD90: 0
A91: Sales/Maturities of investments | B91: 69853 | C91: 112805 | D91: 124447 | E91: 208111 | F91: 121985 | G91: 121985 | I91: Acquisitions, net | J91: -18 | N91: -1809 | O91: -1484 | Q91: Acquisitions, net | R91: -15 | S91: -71 | T91: -105 | U91: -423 | V91: -556 | W91: -556 | Y91: Acquisitions, net | AA91: -8 | AC91: -3 | AD91: -4 | AE91: -66
A92: Purchases of intangibles | B92: -3192 | C92: -1107 | D92: -911 | E92: -242 | F92: -241 | G92: -241 | I92: Purchases of investments | K92: -7 | L92: -28 | M92: -6 | N92: -16 | O92: -72 | Q92: Purchases of investments | R92: -599 | S92: -559 | T92: -74 | U92: -42 | V92: 5 | Y92: Purchases of investments | AD92: -104 | AE92: -311
A93: Other investing activities | B93: -259 | C93: -48 | D93: -160 | E93: 16 | F93: -26 | G93: -26 | I93: Purchases of intangibles | J93: -27 | Q93: Sales/Maturities of investments | R93: 282 | S93: 674 | T93: 267 | U93: 10 | Y93: Sales/Maturities of investments | AD93: 1 | AE93: 76
A94: Net cash used for investing activities | B94: -40419 | C94: -48227 | D94: -33774 | E94: -22579 | F94: -56274 | G94: -56274 | I94: Sales of intangibles | J94: 15 | Q94: Other investing activities | R94: 6 | S94: 4 | T94: 2 | U94: 0 | V94: 6 | W94: 8 | Y94: Other investing activities | AE94: 0
A95: Cash Flows From Financing Activities | I95: Other investing activities | J95: 44 | K95: 19 | M95: 2 | N95: 89 | O95: 130 | Q95: Net cash used for investing activities | R95: -434 | S95: -65 | T95: -11 | U95: -612 | V95: -738 | W95: -743 | Y95: Net cash used for investing activities | AA95: -10 | AB95: -18 | AC95: -21 | AD95: -134 | AE95: -339
A96: Debt issued | D96: 16896 | E96: 18266 | I96: Net cash used for investing activities | J96: -606 | K96: -596 | L96: -494 | M96: -582 | N96: -2456 | O96: -2115 | Q96: Cash Flows From Financing Activities | Y96: Cash Flows From Financing Activities
A97: Common stock issued | B97: 831 | C97: 665 | D97: 530 | E97: 730 | F97: 543 | G97: 543 | I97: Cash Flows From Financing Activities | Q97: Debt issued | R97: 5 | T97: 300 | U97: 300 | V97: 1069 | Y97: Debt issued | AB97: 139 | AC97: 30
A98: Common stock repurchased | D98: -22860 | E98: -45000 | F98: -35253 | G98: -35253 | I98: Debt issued | J98: 2 | K98: 300 | L98: 322 | M98: 518 | N98: 1483 | O98: 1196 | Q98: Debt repayment | R98: -12 | T98: -461 | U98: -31 | V98: -676 | W98: -595 | Y98: Debt repayment | AA98: 0 | AB98: -10 | AC98: -46 | AD98: -114
A99: Dividend paid | C99: -2488 | D99: -10564 | E99: -11126 | F99: -11561 | G99: -11561 | I99: Debt repayment | J99: -411 | K99: -315 | L99: -361 | M99: -513 | N99: -606 | O99: -278 | Q99: Common stock repurchased | S99: -124 | T99: -5 | U99: -91 | W99: -37 | Y99: Preferred stock issued | AA99: 20
A100: Other financing activities | B100: 613 | C100: 125 | D100: -381 | E100: -419 | F100: 28555 | G100: 28555 | I100: Common stock issued | J100: 72 | K100: 14 | L100: 43 | M100: 95 | N100: 38 | O100: 43 | Q100: Excess tax benefit from stock based compensation | U100: 2 | V100: 4 | W100: 3 | Y100: Common stock issued | AA100: 0 | AB100: 3 | AC100: 1 | AD100: 8 | AE100: -160
A101: Net cash provided by (used for) financing activities | B101: 1444 | C101: -1698 | D101: -16379 | E101: -37549 | F101: -17716 | G101: -17716 | I101: Common stock repurchased | M101: -350 | N101: -25 | O101: -95 | Q101: Dividend paid | R101: -4 | S101: -21 | T101: -41 | U101: -83 | V101: -93 | W101: -95 | Y101: Common stock repurchased | AD101: -1
A102: Net change in cash | B102: -1446 | C102: 931 | D102: 3513 | E102: -415 | F102: 7276 | G102: 7276 | I102: Dividend paid | J102: -132 | K102: -148 | L102: -155 | M102: -187 | N102: -224 | O102: -259 | Q102: Other financing activities | R102: 3 | S102: -3 | T102: 4 | U102: 39 | V102: 1 | W102: 1075 | Y102: Excess tax benefit from stock based compensation | AB102: 4 | AC102: 0 | AD102: 77 | AE102: 86
A103: Cash at beginning of period | B103: 11261 | C103: 9815 | D103: 10746 | E103: 14259 | F103: 13844 | G103: 13844 | I103: Other financing activities | J103: -26 | K103: -17 | L103: 3 | M103: 3 | N103: 39 | O103: -117 | Q103: Net cash provided by (used for) financing activities | R103: -8 | S103: -148 | T103: -203 | U103: 137 | V103: 305 | W103: 351 | Y103: Dividend paid | AA103: -5 | AB103: -117
A104: Cash at end of period | B104: 9815 | C104: 10746 | D104: 14259 | E104: 13844 | F104: 21120 | G104: 21120 | I104: Net cash provided by (used for) financing activities | J104: -495 | K104: -166 | L104: -148 | M104: -434 | N104: 705 | O104: 490 | Q104: Effect of exchange rate changes | R104: 69 | S104: -43 | T104: 9 | U104: 10 | V104: -51 | W104: 10 | Y104: Other financing activities | AA104: 6 | AB104: -2 | AC104: -1 | AD104: 286 | AE104: 277
A105: Free Cash Flow | I105: Effect of exchange rate changes | J105: 11 | K105: -27 | L105: 5 | M105: -34 | N105: -82 | O105: -114 | Q105: Net change in cash | R105: -42 | S105: 13 | T105: -163 | U105: 127 | V105: 68 | W105: 4 | Y105: Net cash provided by (used for) financing activities | AA105: 20 | AB105: 17 | AC105: -16 | AD105: 256 | AE105: 203
A106: Operating cash flow | B106: 37529 | C106: 50856 | D106: 53666 | E106: 59713 | F106: 81266 | G106: 81266 | I106: Net change in cash | J106: -12 | K106: -259 | L106: 59 | M106: 212 | N106: -354 | O106: -289 | Q106: Cash at beginning of period | R106: 646 | S106: 604 | T106: 617 | U106: 454 | V106: 581 | W106: 398 | Y106: Net change in cash | AA106: 26 | AB106: 7 | AC106: 65 | AD106: 219 | AE106: 44
A107: Capital expenditure | B107: -7452 | C107: -9402 | D107: -9076 | E107: -9813 | F107: -11488 | G107: -11488 | I107: Cash at beginning of period | J107: 1380 | K107: 1368 | L107: 1109 | M107: 1168 | N107: 1380 | O107: 987 | Q107: Cash at end of period | R107: 604 | S107: 617 | T107: 454 | U107: 581 | V107: 650 | W107: 402 | Y107: Cash at beginning of period | AA107: 3 | AB107: 29 | AC107: 36 | AD107: 101 | AE107: 238
A108: Free cash flow | B108: 30077 | C108: 41454 | D108: 44590 | E108: 49900 | F108: 69778 | G108: 69778 | I108: Cash at end of period | J108: 1368 | K108: 1109 | L108: 1168 | M108: 1380 | N108: 1026 | O108: 698 | Q108: Free Cash Flow | Y108: Cash at end of period | AA108: 29 | AB108: 36 | AC108: 101 | AD108: 320 | AE108: 282
I109: Free Cash Flow | Q109: Operating cash flow | R109: 332 | S109: 269 | T109: 42 | U109: 592 | V109: 553 | W109: 387 | Y109: Free Cash Flow
I110: Operating cash flow | J110: 1078 | K110: 530 | L110: 696 | M110: 1262 | N110: 1479 | O110: 1450 | Q110: Capital expenditure | R110: -108 | S110: -113 | T110: -102 | U110: -157 | V110: -192 | W110: -195 | Y110: Operating cash flow | AA110: 15 | AB110: 8 | AC110: 102 | AD110: 97 | AE110: 180
I111: Capital expenditure | J111: -620 | K111: -608 | L111: -476 | M111: -578 | N111: -720 | O111: -689 | Q111: Free cash flow | R111: 223 | S111: 156 | T111: -60 | U111: 435 | V111: 360 | W111: 191 | Y111: Capital expenditure | AA111: -2 | AB111: -18 | AC111: -18 | AD111: -27 | AE111: -37
I112: Free cash flow | J112: 458 | K112: -78 | L112: 220 | M112: 684 | N112: 759 | O112: 761 | Y112: Free cash flow | AA112: 13 | AB112: -9 | AC112: 84 | AD112: 69 | AE112: 143

Sheet Ratios
A1: Growth Profitability and Financial Ratios for Apple Inc | N1: Growth Profitability and Financial Ratios for Whirlpool Corp | AA1: Growth Profitability and Financial Ratios for Harman International Industries Inc | AN1: Growth Profitability and Financial Ratios for GoPro Inc Class A | BA1: Growth Profitability and Financial Ratios for Pace PLC
A2: Financials | N2: Financials | AA2: Financials | AN2: Financials | BA2: Financials
B3: 2006-09 | C3: 2007-09 | D3: 2008-09 | E3: 2009-09 | F3: 2010-09 | G3: 2011-09 | H3: 2012-09 | I3: 2013-09 | J3: 2014-09 | K3: 2015-09 | L3: TTM | O3: 2005-12 | P3: 2006-12 | Q3: 2007-12 | R3: 2008-12 | S3: 2009-12 | T3: 2010-12 | U3: 2011-12 | V3: 2012-12 | W3: 2013-12 | X3: 2014-12 | Y3: TTM | AB3: 2006-06 | AC3: 2007-06 | AD3: 2008-06 | AE3: 2009-06 | AF3: 2010-06 | AG3: 2011-06 | AH3: 2012-06 | AI3: 2013-06 | AJ3: 2014-06 | AK3: 2015-06 | AL3: TTM | AO3: 2005-12 | AP3: 2006-12 | AQ3: 2007-12 | AR3: 2008-12 | AS3: 2009-12 | AT3: 2010-12 | AU3: 2011-12 | AV3: 2012-12 | AW3: 2013-12 | AX3: 2014-12 | AY3: TTM | BB3: 2005-05 | BC3: 2006-05 | BD3: 2007-05 | BE3: 2008-12 | BF3: 2009-12 | BG3: 2010-12 | BH3: 2011-12 | BI3: 2012-12 | BJ3: 2013-12 | BK3: 2014-12 | BL3: TTM
A4: Revenue USD Mil | B4: 19315 | C4: 24006 | D4: 32479 | E4: 42905 | F4: 65225 | G4: 108249 | H4: 156508 | I4: 170910 | J4: 182795 | K4: 233715 | L4: 233715 | N4: Revenue USD Mil | O4: 14317 | P4: 18080 | Q4: 19408 | R4: 18907 | S4: 17099 | T4: 18366 | U4: 18666 | V4: 18143 | W4: 18769 | X4: 19872 | Y4: 21334 | AA4: Revenue USD Mil | AB4: 3248 | AC4: 3551 | AD4: 4113 | AE4: 2891 | AF4: 3364 | AG4: 3772 | AH4: 4364 | AI4: 4298 | AJ4: 5348 | AK4: 6155 | AL4: 6357 | AN4: Revenue USD Mil | AU4: 234 | AV4: 526 | AW4: 986 | AX4: 1394 | AY4: 1817 | BA4: Revenue USD Mil | BB4: 253 | BC4: 178 | BD4: 387 | BE4: 1092 | BF4: 1833 | BG4: 2063 | BH4: 2309 | BI4: 2403 | BJ4: 2469 | BK4: 2620 | BL4: 2560
A5: Gross Margin % | B5: 29 | C5: 34 | D5: 34.3 | E5: 40.1 | F5: 39.4 | G5: 40.5 | H5: 43.9 | I5: 37.6 | J5: 38.6 | K5: 40.1 | L5: 40.1 | N5: Gross Margin % | O5: 21.3 | P5: 14.7 | Q5: 14.9 | R5: 13.3 | S5: 14 | T5: 14.8 | U5: 13.8 | V5: 15.9 | W5: 17.6 | X5: 17.1 | Y5: 17.4 | AA5: Gross Margin % | AB5: 35.5 | AC5: 34.1 | AD5: 27 | AE5: 23.3 | AF5: 26.3 | AG5: 26.2 | AH5: 27.1 | AI5: 25.7 | AJ5: 27.2 | AK5: 29.5 | AL5: 29.7 | AN5: Gross Margin % | AU5: 52.3 | AV5: 43.2 | AW5: 36.7 | AX5: 45 | AY5: 46.7 | BA5: Gross Margin % | BB5: 22.6 | BC5: 14.9 | BD5: 15.9 | BE5: 18.1 | BF5: 17.6 | BG5: 19.2 | BH5: 19.2 | BI5: 18 | BJ5: 18.2 | BK5: 20.3 | BL5: 21
A6: Operating Income USD Mil | B6: 2453 | C6: 4409 | D6: 6275 | E6: 11740 | F6: 18385 | G6: 33790 | H6: 55241 | I6: 48999 | J6: 52503 | K6: 71230 | L6: 71230 | N6: Operating Income USD Mil | O6: 792 | P6: 823 | Q6: 1063 | R6: 549 | S6: 688 | T6: 1008 | U6: 792 | V6: 869 | W6: 1249 | X6: 1188 | Y6: 1186 | AA6: Operating Income USD Mil | AB6: 397 | AC6: 386 | AD6: 139 | AE6: -509 | AF6: 86 | AG6: 190 | AH6: 300 | AI6: 201 | AJ6: 330 | AK6: 470 | AL6: 485 | AN6: Operating Income USD Mil | AU6: 39 | AV6: 54 | AW6: 99 | AX6: 187 | AY6: 270 | BA6: Operating Income USD Mil | BB6: 9 | BC6: -28 | BD6: 7 | BE6: 21 | BF6: 113 | BG6: 113 | BH6: 73 | BI6: 94 | BJ6: 139 | BK6: 181 | BL6: 195
A7: Operating Margin % | B7: 12.7 | C7: 18.4 | D7: 19.3 | E7: 27.4 | F7: 28.2 | G7: 31.2 | H7: 35.3 | I7: 28.7 | J7: 28.7 | K7: 30.5 | L7: 30.5 | N7: Operating Margin % | O7: 5.5 | P7: 4.6 | Q7: 5.5 | R7: 2.9 | S7: 4 | T7: 5.5 | U7: 4.2 | V7: 4.8 | W7: 6.7 | X7: 6 | Y7: 5.6 | AA7: Operating Margin % | AB7: 12.2 | AC7: 10.9 | AD7: 3.4 | AE7: -17.6 | AF7: 2.5 | AG7: 5 | AH7: 6.9 | AI7: 4.7 | AJ7: 6.2 | AK7: 7.6 | AL7: 7.6 | AN7: Operating Margin % | AU7: 16.6 | AV7: 10.2 | AW7: 10 | AX7: 13.4 | AY7: 14.8 | BA7: Operating Margin % | BB7: 3.4 | BC7: -15.8 | BD7: 1.8 | BE7: 1.9 | BF7: 6.1 | BG7: 5.5 | BH7: 3.2 | BI7: 3.9 | BJ7: 5.6 | BK7: 6.9 | BL7: 7.6
A8: Net Income USD Mil | B8: 1989 | C8: 3496 | D8: 4834 | E8: 8235 | F8: 14013 | G8: 25922 | H8: 41733 | I8: 37037 | J8: 39510 | K8: 53394 | L8: 53394 | N8: Net Income USD Mil | O8: 422 | P8: 433 | Q8: 640 | R8: 418 | S8: 328 | T8: 619 | U8: 390 | V8: 401 | W8: 827 | X8: 650 | Y8: 684 | AA8: Net Income USD Mil | AB8: 255 | AC8: 314 | AD8: 108 | AE8: -423 | AF8: 159 | AG8: 136 | AH8: 330 | AI8: 142 | AJ8: 235 | AK8: 343 | AL8: 347 | AN8: Net Income USD Mil | AU8: 25 | AV8: 32 | AW8: 61 | AX8: 128 | AY8: 193 | BA8: Net Income USD Mil | BB8: 14 | BC8: -29 | BD8: 7 | BE8: 16 | BF8: 83 | BG8: 77 | BH8: 39 | BI8: 58 | BJ8: 97 | BK8: 148 | BL8: 178
A9: Earnings Per Share USD | B9: 0.32 | C9: 0.56 | D9: 0.77 | E9: 1.3 | F9: 2.16 | G9: 3.95 | H9: 6.31 | I9: 5.68 | J9: 6.45 | K9: 9.22 | L9: 9.22 | N9: Earnings Per Share USD | O9: 6.19 | P9: 5.67 | Q9: 8.01 | R9: 5.5 | S9: 4.34 | T9: 7.97 | U9: 4.99 | V9: 5.06 | W9: 10.24 | X9: 8.17 | Y9: 8.55 | AA9: Earnings Per Share USD | AB9: 3.75 | AC9: 4.72 | AD9: 1.73 | AE9: -7.19 | AF9: 2.25 | AG9: 1.9 | AH9: 4.57 | AI9: 2.04 | AJ9: 3.36 | AK9: 4.84 | AL9: 4.85 | AN9: Earnings Per Share USD | AW9: 0.47 | AX9: 0.92 | AY9: 1.2 | BA9: Earnings Per Share USD | BB9: 0.06 | BC9: -0.13 | BD9: 0.03 | BE9: 0.06 | BF9: 0.28 | BG9: 0.25 | BH9: 0.13 | BI9: 0.19 | BJ9: 0.3 | BK9: 0.46 | BL9: 0.55
A10: Dividends USD | H10: 0.38 | I10: 1.63 | J10: 1.81 | K10: 1.98 | L10: 1.98 | N10: Dividends USD | O10: 1.72 | P10: 1.72 | Q10: 1.72 | R10: 1.72 | S10: 1.72 | T10: 1.72 | U10: 1.93 | V10: 2 | W10: 2.38 | X10: 2.88 | Y10: 3.3 | AA10: Dividends USD | AB10: 0.05 | AC10: 0.05 | AD10: 0.05 | AE10: 0.04 | AG10: 0.05 | AH10: 0.3 | AI10: 0.6 | AJ10: 1.2 | AK10: 1.32 | AL10: 1.34 | AN10: Dividends USD | BA10: Dividends USD | BG10: 0.01 | BH10: 0.02 | BK10: 0.06 | BL10: 0.07
A11: Payout Ratio % | I11: 27.4 | J11: 28.7 | K11: 22.3 | L11: 21.5 | N11: Payout Ratio % | O11: 29.8 | P11: 26.5 | Q11: 21.2 | R11: 31.3 | S11: 39.6 | T11: 21.6 | U11: 40.8 | V11: 39.6 | W11: 23.7 | X11: 29.2 | Y11: 38.6 | AA11: Payout Ratio % | AB11: 1.3 | AC11: 1.2 | AD11: 2.9 | AG11: 2.6 | AH11: 6 | AI11: 19.8 | AJ11: 37.3 | AK11: 29 | AL11: 27.6 | AN11: Payout Ratio % | BA11: Payout Ratio % | BG11: 5 | BH11: 21.9 | BK11: 11.8 | BL11: 12.5
A12: Shares Mil | B12: 6143 | C12: 6225 | D12: 6315 | E12: 6349 | F12: 6473 | G12: 6557 | H12: 6617 | I12: 6522 | J12: 6123 | K12: 5793 | L12: 5793 | N12: Shares Mil | O12: 68 | P12: 77 | Q12: 80 | R12: 76 | S12: 76 | T12: 78 | U12: 78 | V12: 79 | W12: 81 | X12: 80 | Y12: 80 | AA12: Shares Mil | AB12: 68 | AC12: 66 | AD12: 62 | AE12: 59 | AF12: 71 | AG12: 72 | AH12: 72 | AI12: 70 | AJ12: 70 | AK12: 71 | AL12: 71 | AN12: Shares Mil | AW12: 129 | AX12: 124 | AY12: 147 | BA12: Shares Mil | BB12: 224 | BC12: 222 | BD12: 226 | BE12: 278 | BF12: 299 | BG12: 309 | BH12: 311 | BI12: 315 | BJ12: 325 | BK12: 324 | BL12: 324
A13: Book Value Per Share USD | B13: 1.56 | C13: 2.2 | D13: 3.39 | E13: 5.02 | F13: 7.45 | G13: 11.78 | H13: 17 | I13: 19.6 | J13: 20.62 | K13: 22.53 | L13: 21.41 | N13: Book Value Per Share USD | O13: 27.84 | P13: 39.85 | Q13: 51.58 | R13: 40.9 | S13: 48.85 | T13: 55.61 | U13: 55.78 | V13: 53.92 | W13: 60.64 | X13: 66.64 | Y13: 62.19 | AA13: Book Value Per Share USD | AB13: 18.59 | AC13: 20.91 | AD13: 22.9 | AE13: 14.05 | AF13: 16.32 | AG13: 20.36 | AH13: 24.61 | AI13: 24.1 | AJ13: 25.95 | AK13: 30.39 | AL13: 33.16 | AN13: Book Value Per Share USD | AX13: 2.72 | AY13: 6.04 | BA13: Book Value Per Share USD | BF13: 1.05 | BG13: 1.23 | BH13: 1.3 | BI13: 1.48 | BJ13: 1.62 | BK13: 1.95 | BL13: 2.32
A14: Operating Cash Flow USD Mil | B14: 2220 | C14: 5470 | D14: 9596 | E14: 10159 | F14: 18595 | G14: 37529 | H14: 50856 | I14: 53666 | J14: 59713 | K14: 81266 | L14: 81266 | N14: Operating Cash Flow USD Mil | O14: 881 | P14: 888 | Q14: 933 | R14: 327 | S14: 1550 | T14: 1078 | U14: 530 | V14: 696 | W14: 1262 | X14: 1479 | Y14: 1450 | AA14: Operating Cash Flow USD Mil | AB14: 400 | AC14: 215 | AD14: 317 | AE14: 79 | AF14: 240 | AG14: 332 | AH14: 269 | AI14: 42 | AJ14: 592 | AK14: 553 | AL14: 387 | AN14: Operating Cash Flow USD Mil | AU14: 15 | AV14: 8 | AW14: 102 | AX14: 97 | AY14: 180 | BA14: Operating Cash Flow USD Mil | BB14: 21 | BC14: -11 | BD14: 37 | BE14: 121 | BF14: 147 | BG14: 96 | BH14: 107 | BI14: 262 | BJ14: 282 | BK14: 274 | BL14: 269
A15: Cap Spending USD Mil | B15: -657 | C15: -986 | D15: -1199 | E15: -1213 | F15: -2121 | G15: -7452 | H15: -9402 | I15: -9076 | J15: -9813 | K15: -11488 | L15: -11488 | N15: Cap Spending USD Mil | O15: -494 | P15: -576 | Q15: -536 | R15: -547 | S15: -541 | T15: -620 | U15: -608 | V15: -476 | W15: -578 | X15: -720 | Y15: -689 | AA15: Cap Spending USD Mil | AB15: -131 | AC15: -175 | AD15: -139 | AE15: -80 | AF15: -60 | AG15: -108 | AH15: -113 | AI15: -102 | AJ15: -157 | AK15: -192 | AL15: -195 | AN15: Cap Spending USD Mil | AU15: -2 | AV15: -18 | AW15: -18 | AX15: -27 | AY15: -37 | BA15: Cap Spending USD Mil | BB15: -15 | BC15: -23 | BD15: -20 | BE15: -40 | BF15: -88 | BG15: -87 | BH15: -99 | BI15: -80 | BJ15: -75 | BK15: -92 | BL15: -82
A16: Free Cash Flow USD Mil | B16: 1563 | C16: 4484 | D16: 8397 | E16: 8946 | F16: 16474 | G16: 30077 | H16: 41454 | I16: 44590 | J16: 49900 | K16: 69778 | L16: 69778 | N16: Free Cash Flow USD Mil | O16: 387 | P16: 312 | Q16: 397 | R16: -220 | S16: 1009 | T16: 458 | U16: -78 | V16: 220 | W16: 684 | X16: 759 | Y16: 761 | AA16: Free Cash Flow USD Mil | AB16: 269 | AC16: 41 | AD16: 178 | AE16: -1 | AF16: 180 | AG16: 223 | AH16: 156 | AI16: -60 | AJ16: 435 | AK16: 360 | AL16: 191 | AN16: Free Cash Flow USD Mil | AU16: 13 | AV16: -9 | AW16: 84 | AX16: 69 | AY16: 143 | BA16: Free Cash Flow USD Mil | BB16: 6 | BC16: -34 | BD16: 17 | BE16: 81 | BF16: 59 | BG16: 8 | BH16: 8 | BI16: 182 | BJ16: 207 | BK16: 182 | BL16: 187
A17: Free Cash Flow Per Share USD | B17: 0.21 | C17: 0.63 | D17: 1.33 | E17: 1.41 | F17: 2.55 | G17: 4.59 | H17: 6.31 | I17: 6.47 | J17: 7.73 | K17: 11.83 | N17: Free Cash Flow Per Share USD | O17: 2.56 | P17: 4.66 | Q17: 4.97 | R17: -2.89 | S17: 13.35 | T17: 5.9 | U17: -3.38 | V17: 2.77 | W17: 7.2 | X17: 2.63 | AA17: Free Cash Flow Per Share USD | AB17: 3.95 | AC17: 0.87 | AD17: 2.86 | AE17: -0.02 | AF17: 2.56 | AG17: 3.12 | AH17: 1.49 | AI17: 1.39 | AJ17: 3.96 | AK17: 5.68 | AN17: Free Cash Flow Per Share USD | AX17: 0.77 | BA17: Free Cash Flow Per Share USD | BF17: 0.2 | BG17: 0.03 | BH17: -0.02 | BI17: 0.58 | BJ17: 0.56 | BK17: 0.63
A18: Working Capital USD Mil | B18: 8038 | C18: 12657 | D18: 20598 | E18: 20049 | F18: 20956 | G18: 17018 | H18: 19111 | I18: 29628 | J18: 5083 | K18: 8768 | N18: Working Capital USD Mil | O18: 409 | P18: 474 | Q18: 662 | R18: 481 | S18: 1084 | T18: 1166 | U18: 125 | V18: 317 | W18: 228 | X18: -305 | AA18: Working Capital USD Mil | AB18: 380 | AC18: 417 | AD18: 532 | AE18: 767 | AF18: 811 | AG18: 1061 | AH18: 734 | AI18: 1012 | AJ18: 973 | AK18: 828 | AN18: Working Capital USD Mil | AV18: 70 | AW18: 57 | AX18: 564 | BA18: Working Capital USD Mil | BB18: 52 | BC18: 20 | BD18: 26 | BE18: 43 | BF18: 151 | BG18: -22 | BH18: -46 | BI18: -4 | BJ18: 52 | BK18: 237
A20: Key Ratios -> Profitability | N20: Key Ratios -> Profitability | AA20: Key Ratios -> Profitability | AN20: Key Ratios -> Profitability | BA20: Key Ratios -> Profitability
A21: Margins % of Sales | B21: 2006-09 | C21: 2007-09 | D21: 2008-09 | E21: 2009-09 | F21: 2010-09 | G21: 2011-09 | H21: 2012-09 | I21: 2013-09 | J21: 2014-09 | K21: 2015-09 | L21: TTM | N21: Margins % of Sales | O21: 2005-12 | P21: 2006-12 | Q21: 2007-12 | R21: 2008-12 | S21: 2009-12 | T21: 2010-12 | U21: 2011-12 | V21: 2012-12 | W21: 2013-12 | X21: 2014-12 | Y21: TTM | AA21: Margins % of Sales | AB21: 2006-06 | AC21: 2007-06 | AD21: 2008-06 | AE21: 2009-06 | AF21: 2010-06 | AG21: 2011-06 | AH21: 2012-06 | AI21: 2013-06 | AJ21: 2014-06 | AK21: 2015-06 | AL21: TTM | AN21: Margins % of Sales | AO21: 2005-12 | AP21: 2006-12 | AQ21: 2007-12 | AR21: 2008-12 | AS21: 2009-12 | AT21: 2010-12 | AU21: 2011-12 | AV21: 2012-12 | AW21: 2013-12 | AX21: 2014-12 | AY21: TTM | BA21: Margins % of Sales | BB21: 2005-05 | BC21: 2006-05 | BD21: 2007-05 | BE21: 2008-12 | BF21: 2009-12 | BG21: 2010-12 | BH21: 2011-12 | BI21: 2012-12 | BJ21: 2013-12 | BK21: 2014-12 | BL21: TTM
A22: Revenue | B22: 100 | C22: 100 | D22: 100 | E22: 100 | F22: 100 | G22: 100 | H22: 100 | I22: 100 | J22: 100 | K22: 100 | L22: 100 | N22: Revenue | O22: 100 | P22: 100 | Q22: 100 | R22: 100 | S22: 100 | T22: 100 | U22: 100 | V22: 100 | W22: 100 | X22: 100 | Y22: 100 | AA22: Revenue | AB22: 100 | AC22: 100 | AD22: 100 | AE22: 100 | AF22: 100 | AG22: 100 | AH22: 100 | AI22: 100 | AJ22: 100 | AK22: 100 | AL22: 100 | AN22: Revenue | AU22: 100 | AV22: 100 | AW22: 100 | AX22: 100 | AY22: 100 | BA22: Revenue | BB22: 100 | BC22: 100 | BD22: 100 | BE22: 100 | BF22: 100 | BG22: 100 | BH22: 100 | BI22: 100 | BJ22: 100 | BK22: 100 | BL22: 100
A23: COGS | B23: 71.02 | C23: 66.03 | D23: 65.69 | E23: 59.86 | F23: 60.62 | G23: 59.52 | H23: 56.13 | I23: 62.38 | J23: 61.41 | K23: 59.94 | L23: 59.94 | N23: COGS | O23: 78.71 | P23: 85.29 | Q23: 85.1 | R23: 86.65 | S23: 86.05 | T23: 85.22 | U23: 86.19 | V23: 84.05 | W23: 82.43 | X23: 82.92 | Y23: 82.59 | AA23: COGS | AB23: 64.51 | AC23: 65.89 | AD23: 73.02 | AE23: 76.67 | AF23: 73.69 | AG23: 73.83 | AH23: 72.87 | AI23: 74.31 | AJ23: 72.76 | AK23: 70.48 | AL23: 70.27 | AN23: COGS | AU23: 47.68 | AV23: 56.75 | AW23: 63.3 | AX23: 55.01 | AY23: 53.31 | BA23: COGS | BB23: 77.41 | BC23: 85.06 | BD23: 84.05 | BE23: 81.86 | BF23: 82.4 | BG23: 80.85 | BH23: 80.8 | BI23: 81.98 | BJ23: 81.85 | BK23: 79.68 | BL23: 79.01
A24: Gross Margin | B24: 28.98 | C24: 33.97 | D24: 34.31 | E24: 40.14 | F24: 39.38 | G24: 40.48 | H24: 43.87 | I24: 37.62 | J24: 38.59 | K24: 40.06 | L24: 40.06 | N24: Gross Margin | O24: 21.29 | P24: 14.71 | Q24: 14.9 | R24: 13.35 | S24: 13.95 | T24: 14.78 | U24: 13.81 | V24: 15.95 | W24: 17.57 | X24: 17.08 | Y24: 17.41 | AA24: Gross Margin | AB24: 35.49 | AC24: 34.11 | AD24: 26.98 | AE24: 23.33 | AF24: 26.31 | AG24: 26.17 | AH24: 27.13 | AI24: 25.69 | AJ24: 27.24 | AK24: 29.52 | AL24: 29.73 | AN24: Gross Margin | AU24: 52.32 | AV24: 43.25 | AW24: 36.7 | AX24: 44.99 | AY24: 46.69 | BA24: Gross Margin | BB24: 22.59 | BC24: 14.94 | BD24: 15.95 | BE24: 18.14 | BF24: 17.6 | BG24: 19.15 | BH24: 19.2 | BI24: 18.02 | BJ24: 18.15 | BK24: 20.32 | BL24: 20.99
A25: SG&A | B25: 12.6 | C25: 12.34 | D25: 11.58 | E25: 9.67 | F25: 8.46 | G25: 7.02 | H25: 6.42 | I25: 6.34 | J25: 6.56 | K25: 6.13 | L25: 6.13 | N25: SG&A | O25: 15.36 | P25: 9.69 | Q25: 8.94 | R25: 9.51 | S25: 9.03 | T25: 8.73 | U25: 8.68 | V25: 9.68 | W25: 9.74 | X25: 10.26 | Y25: 10.67 | AA25: SG&A | AB25: 23.26 | AC25: 23.23 | AD25: 23.61 | AE25: 29.52 | AF25: 23.01 | AG25: 21.57 | AH25: 20.26 | AI25: 21.01 | AJ25: 21.07 | AK25: 21.89 | AL25: 22.09 | AN25: SG&A | AU25: 32.08 | AV25: 26.19 | AW25: 19.21 | AX25: 20.68 | AY25: 19.67 | BA25: SG&A
A26: R&D | B26: 3.69 | C26: 3.26 | D26: 3.41 | E26: 3.11 | F26: 2.73 | G26: 2.24 | H26: 2.16 | I26: 2.62 | J26: 3.3 | K26: 3.45 | L26: 3.45 | N26: R&D | AA26: R&D | AN26: R&D | AU26: 3.69 | AV26: 6.87 | AW26: 7.48 | AX26: 10.89 | AY26: 12.18 | BA26: R&D | BB26: 9.14 | BC26: 14 | BD26: 7.49 | BE26: 8.11 | BF26: 6.07 | BG26: 5.82 | BH26: 6.95 | BI26: 6.47 | BJ26: 5.37 | BK26: 3.19 | BL26: 3.09
A27: Other | N27: Other | O27: 0.4 | P27: 0.47 | Q27: 0.47 | R27: 0.94 | S27: 0.9 | T27: 0.56 | U27: 0.88 | V27: 1.47 | W27: 1.18 | X27: 0.85 | Y27: 1.18 | AA27: Other | AE27: 11.43 | AF27: 0.76 | AG27: -0.44 | AH27: -0.01 | AN27: Other | BA27: Other | BB27: 10.07 | BC27: 16.71 | BD27: 6.73 | BE27: 8.31 | BF27: 5.33 | BG27: 7.85 | BH27: 9.05 | BI27: 7.65 | BJ27: 7.16 | BK27: 10.23 | BL27: 10.31
A28: Operating Margin | B28: 12.7 | C28: 18.37 | D28: 19.32 | E28: 27.36 | F28: 28.19 | G28: 31.22 | H28: 35.3 | I28: 28.67 | J28: 28.72 | K28: 30.48 | L28: 30.48 | N28: Operating Margin | O28: 5.53 | P28: 4.55 | Q28: 5.48 | R28: 2.9 | S28: 4.02 | T28: 5.49 | U28: 4.24 | V28: 4.79 | W28: 6.65 | X28: 5.98 | Y28: 5.56 | AA28: Operating Margin | AB28: 12.23 | AC28: 10.88 | AD28: 3.37 | AE28: -17.62 | AF28: 2.54 | AG28: 5.04 | AH28: 6.88 | AI28: 4.68 | AJ28: 6.16 | AK28: 7.63 | AL28: 7.63 | AN28: Operating Margin | AU28: 16.56 | AV28: 10.19 | AW28: 10.01 | AX28: 13.42 | AY28: 14.84 | BA28: Operating Margin | BB28: 3.38 | BC28: -15.76 | BD28: 1.84 | BE28: 1.94 | BF28: 6.15 | BG28: 5.48 | BH28: 3.16 | BI28: 3.9 | BJ28: 5.62 | BK28: 6.9 | BL28: 7.6
A29: Net Int Inc & Other | B29: 1.89 | C29: 2.5 | D29: 1.91 | E29: 0.76 | F29: 0.24 | G29: 0.38 | H29: 0.33 | I29: 0.68 | J29: 0.54 | K29: 0.55 | L29: 0.55 | N29: Net Int Inc & Other | O29: -1.36 | P29: -1.13 | Q29: -1.33 | R29: -1.6 | S29: -2.3 | T29: -2.3 | U29: -4.39 | V29: -1.71 | W29: -1.77 | X29: -1.54 | Y29: -1.25 | AA29: Net Int Inc & Other | AB29: -0.65 | AC29: -0.12 | AD29: -0.34 | AE29: -0.36 | AF29: -1.08 | AG29: -0.79 | AH29: -0.9 | AI29: -0.63 | AJ29: -0.42 | AK29: -0.38 | AL29: -0.45 | AN29: Net Int Inc & Other | AU29: 0.01 | AV29: -0.08 | AW29: -0.75 | AX29: -0.43 | AY29: -0.2 | BA29: Net Int Inc & Other | BB29: 0.16 | BC29: 0.35 | BD29: -0.57 | BE29: -0.09 | BF29: 0.02 | BG29: -0.14 | BH29: -0.79 | BI29: -0.57 | BJ29: -0.32 | BK29: -0.2 | BL29: -0.22
A30: EBT Margin | B30: 14.59 | C30: 20.86 | D30: 21.23 | E30: 28.12 | F30: 28.42 | G30: 31.6 | H30: 35.63 | I30: 29.35 | J30: 29.26 | K30: 31.03 | L30: 31.03 | N30: EBT Margin | O30: 4.17 | P30: 3.42 | Q30: 4.14 | R30: 1.3 | S30: 1.72 | T30: 3.19 | U30: -0.15 | V30: 3.08 | W30: 4.89 | X30: 4.43 | Y30: 4.31 | AA30: EBT Margin | AB30: 11.58 | AC30: 10.76 | AD30: 3.03 | AE30: -17.98 | AF30: 1.46 | AG30: 4.25 | AH30: 5.98 | AI30: 4.05 | AJ30: 5.75 | AK30: 7.25 | AL30: 7.18 | AN30: EBT Margin | AU30: 16.56 | AV30: 10.12 | AW30: 9.27 | AX30: 12.98 | AY30: 14.64 | BA30: EBT Margin | BB30: 3.54 | BC30: -15.41 | BD30: 1.27 | BE30: 1.85 | BF30: 6.17 | BG30: 5.34 | BH30: 2.37 | BI30: 3.33 | BJ30: 5.3 | BK30: 6.71 | BL30: 7.38
A32: Profitability | B32: 2006-09 | C32: 2007-09 | D32: 2008-09 | E32: 2009-09 | F32: 2010-09 | G32: 2011-09 | H32: 2012-09 | I32: 2013-09 | J32: 2014-09 | K32: 2015-09 | L32: TTM | N32: Profitability | O32: 2005-12 | P32: 2006-12 | Q32: 2007-12 | R32: 2008-12 | S32: 2009-12 | T32: 2010-12 | U32: 2011-12 | V32: 2012-12 | W32: 2013-12 | X32: 2014-12 | Y32: TTM | AA32: Profitability | AB32: 2006-06 | AC32: 2007-06 | AD32: 2008-06 | AE32: 2009-06 | AF32: 2010-06 | AG32: 2011-06 | AH32: 2012-06 | AI32: 2013-06 | AJ32: 2014-06 | AK32: 2015-06 | AL32: TTM | AN32: Profitability | AO32: 2005-12 | AP32: 2006-12 | AQ32: 2007-12 | AR32: 2008-12 | AS32: 2009-12 | AT32: 2010-12 | AU32: 2011-12 | AV32: 2012-12 | AW32: 2013-12 | AX32: 2014-12 | AY32: TTM | BA32: Profitability | BB32: 2005-05 | BC32: 2006-05 | BD32: 2007-05 | BE32: 2008-12 | BF32: 2009-12 | BG32: 2010-12 | BH32: 2011-12 | BI32: 2012-12 | BJ32: 2013-12 | BK32: 2014-12 | BL32: TTM
A33: Tax Rate % | B33: 29.42 | C33: 30.19 | D33: 29.89 | E33: 31.75 | F33: 24.42 | G33: 24.22 | H33: 25.16 | I33: 26.15 | J33: 26.13 | K33: 26.37 | L33: 26.37 | N33: Tax Rate % | O33: 28.64 | P33: 20.36 | Q33: 14.55 | V33: 23.84 | W33: 7.42 | X33: 21.45 | Y33: 19.46 | AA33: Tax Rate % | AB33: 32.4 | AC33: 18.36 | AD33: 13.75 | AF33: 17.54 | AG33: 15.17 | AI33: 18.21 | AJ33: 23.62 | AK33: 23.14 | AL33: 23.88 | AN33: Tax Rate % | AU33: 36.55 | AV33: 39.37 | AW33: 33.67 | AX33: 29.22 | AY33: 27.54 | BA33: Tax Rate % | BE33: 20.06 | BF33: 26.47 | BG33: 29.85 | BH33: 29.07 | BI33: 27.09 | BJ33: 26.07 | BK33: 15.77 | BL33: 5.72
A34: Net Margin % | B34: 10.3 | C34: 14.56 | D34: 14.88 | E34: 19.19 | F34: 21.48 | G34: 23.95 | H34: 26.67 | I34: 21.67 | J34: 21.61 | K34: 22.85 | L34: 22.85 | N34: Net Margin % | O34: 2.95 | P34: 2.39 | Q34: 3.3 | R34: 2.21 | S34: 1.92 | T34: 3.37 | U34: 2.09 | V34: 2.21 | W34: 4.41 | X34: 3.27 | Y34: 3.21 | AA34: Net Margin % | AB34: 7.86 | AC34: 8.84 | AD34: 2.62 | AE34: -14.62 | AF34: 4.72 | AG34: 3.6 | AH34: 7.55 | AI34: 3.31 | AJ34: 4.39 | AK34: 5.57 | AL34: 5.46 | AN34: Net Margin % | AU34: 5.86 | AV34: -15.2 | AW34: 4.45 | AX34: 8 | AY34: 9.76 | BA34: Net Margin % | BB34: 5.4 | BC34: -16.16 | BD34: 1.75 | BE34: 1.48 | BF34: 4.53 | BG34: 3.75 | BH34: 1.68 | BI34: 2.43 | BJ34: 3.92 | BK34: 5.65 | BL34: 6.95
A35: Asset Turnover (Average) | B35: 1.34 | C35: 1.13 | D35: 1 | E35: 0.99 | F35: 1.06 | G35: 1.13 | H35: 1.07 | I35: 0.89 | J35: 0.83 | K35: 0.89 | L35: 0.89 | N35: Asset Turnover (Average) | O35: 1.74 | P35: 1.63 | Q35: 1.39 | R35: 1.37 | S35: 1.19 | T35: 1.2 | U35: 1.21 | V35: 1.19 | W35: 1.21 | X35: 1.12 | Y35: 1.21 | AA35: Asset Turnover (Average) | AB35: 1.43 | AC35: 1.46 | AD35: 1.54 | AE35: 1.09 | AF35: 1.33 | AG35: 1.34 | AH35: 1.4 | AI35: 1.34 | AJ35: 1.45 | AK35: 1.22 | AL35: 1.29 | AN35: Asset Turnover (Average) | AV35: 2.13 | AW35: 2.87 | AX35: 2.05 | AY35: 2.02 | BA35: Asset Turnover (Average) | BB35: 1.58 | BC35: 1.58 | BD35: 3.31 | BE35: 1.57 | BF35: 2.4 | BG35: 1.72 | BH35: 1.59 | BI35: 1.7 | BJ35: 1.79 | BK35: 1.54 | BL35: 1.4
A36: Return on Assets % | B36: 13.83 | C36: 16.43 | D36: 14.89 | E36: 18.92 | F36: 22.84 | G36: 27.07 | H36: 28.54 | I36: 19.34 | J36: 18.01 | K36: 20.45 | L36: 20.45 | N36: Return on Assets % | O36: 5.14 | P36: 3.91 | Q36: 4.59 | R36: 3.04 | S36: 2.29 | T36: 4.04 | U36: 2.54 | V36: 2.62 | W36: 5.35 | X36: 3.66 | Y36: 3.87 | AA36: Return on Assets % | AB36: 11.24 | AC36: 12.91 | AD36: 4.04 | AE36: -15.89 | AF36: 6.29 | AG36: 4.84 | AH36: 10.58 | AI36: 4.45 | AJ36: 6.38 | AK36: 6.82 | AL36: 7.03 | AN36: Return on Assets % | AV36: -32.41 | AW36: 12.78 | AX36: 16.44 | AY36: 19.72 | BA36: Return on Assets % | BB36: 8.51 | BC36: -25.57 | BD36: 5.79 | BE36: 2.33 | BF36: 10.9 | BG36: 6.45 | BH36: 2.67 | BI36: 4.13 | BJ36: 7.01 | BK36: 8.72 | BL36: 9.74
A37: Financial Leverage (Average) | B37: 1.72 | C37: 1.74 | D37: 1.88 | E37: 1.5 | F37: 1.57 | G37: 1.52 | H37: 1.49 | I37: 1.68 | J37: 2.08 | K37: 2.43 | L37: 2.43 | N37: Financial Leverage (Average) | O37: 4.73 | P37: 4.23 | Q37: 3.58 | R37: 4.5 | S37: 4.12 | T37: 3.69 | U37: 3.63 | V37: 3.61 | W37: 3.16 | X37: 4.09 | Y37: 4.04 | AA37: Financial Leverage (Average) | AB37: 1.92 | AC37: 1.68 | AD37: 2.11 | AE37: 2.56 | AF37: 2.25 | AG37: 2.15 | AH37: 2.07 | AI37: 1.97 | AJ37: 2.3 | AK37: 2.5 | AL37: 2.47 | AN37: Financial Leverage (Average) | AX37: 1.43 | AY37: 1.46 | BA37: Financial Leverage (Average) | BB37: 1.67 | BC37: 2.56 | BD37: 2.45 | BE37: 3.29 | BF37: 2.62 | BG37: 4.17 | BH37: 3.3 | BI37: 3.23 | BJ37: 2.32 | BK37: 3.18 | BL37: 2.56
A38: Return on Equity % | B38: 22.8 | C38: 28.52 | D38: 27.19 | E38: 31.27 | F38: 35.28 | G38: 41.67 | H38: 42.84 | I38: 30.64 | J38: 33.61 | K38: 46.25 | L38: 46.25 | N38: Return on Equity % | O38: 25.19 | P38: 17.22 | Q38: 17.79 | R38: 12.09 | S38: 9.84 | T38: 15.69 | U38: 9.28 | V38: 9.5 | W38: 18.01 | X38: 13.25 | Y38: 13.6 | AA38: Return on Equity % | AB38: 22.31 | AC38: 23.07 | AD38: 7.61 | AE38: -36.53 | AF38: 15.06 | AG38: 10.62 | AH38: 22.32 | AI38: 8.97 | AJ38: 13.66 | AK38: 16.45 | AL38: 16.48 | AN38: Return on Equity % | AX38: 35.1 | AY38: 30.03 | BA38: Return on Equity % | BB38: 17.05 | BC38: -51.3 | BD38: 14.49 | BE38: 7.68 | BF38: 31.47 | BG38: 22.3 | BH38: 9.91 | BI38: 13.47 | BJ38: 19.2 | BK38: 24.38 | BL38: 26.23
A39: Return on Invested Capital % | B39: 19.61 | C39: 24.84 | D39: 27.19 | E39: 30.22 | F39: 34.69 | G39: 41.04 | H39: 42.01 | I39: 26.08 | J39: 26.2 | K39: 31.32 | L39: 31.32 | N39: Return on Invested Capital % | O39: 18.7 | P39: 13.84 | Q39: 14.92 | R39: 9.48 | S39: 8.24 | T39: 12.32 | U39: 7.88 | V39: 9.53 | W39: 14.05 | X39: 10.72 | Y39: 9.97 | AA39: Return on Invested Capital % | AB39: 18.73 | AC39: 21.04 | AD39: 6.9 | AE39: -24.74 | AF39: 11.79 | AG39: 8.2 | AH39: 17.67 | AI39: 7.92 | AJ39: 10.95 | AK39: 11.79 | AL39: 12.13 | AN39: Return on Invested Capital % | AX39: 29.78 | AY39: 30.03 | BA39: Return on Invested Capital % | BB39: 16.46 | BC39: -49.55 | BD39: 15.24 | BE39: 8.05 | BF39: 31.38 | BG39: 9.99 | BH39: 6.33 | BI39: 8.92 | BJ39: 16.38 | BK39: 20.42 | BL39: 19.22
A40: Interest Coverage | I40: 369.79 | J40: 140.28 | K40: 99.93 | L40: 99.93 | N40: Interest Coverage | R40: 2.21 | S40: 2.34 | T40: 3.6 | U40: 0.87 | V40: 2.79 | W40: 6.18 | X40: 3.87 | Y40: 4.46 | AA40: Interest Coverage | AE40: -73.89 | AF40: 2.62 | AI40: 12.39 | AN40: Interest Coverage | AV40: 136.74 | AW40: 16.17 | BA40: Interest Coverage | BB40: 29.19 | BC40: -208.54 | BD40: 4.37 | BE40: 16.88 | BF40: 700 | BG40: 33.41 | BH40: 4.28 | BI40: 8.49 | BJ40: 15.7 | BK40: 25.07 | BL40: 27.59
A42: Key Ratios -> Growth | N42: Key Ratios -> Growth | AA42: Key Ratios -> Growth | AN42: Key Ratios -> Growth | BA42: Key Ratios -> Growth
B43: 2006-09 | C43: 2007-09 | D43: 2008-09 | E43: 2009-09 | F43: 2010-09 | G43: 2011-09 | H43: 2012-09 | I43: 2013-09 | J43: 2014-09 | K43: 2015-09 | L43: Latest Qtr | O43: 2005-12 | P43: 2006-12 | Q43: 2007-12 | R43: 2008-12 | S43: 2009-12 | T43: 2010-12 | U43: 2011-12 | V43: 2012-12 | W43: 2013-12 | X43: 2014-12 | Y43: Latest Qtr | AB43: 2006-06 | AC43: 2007-06 | AD43: 2008-06 | AE43: 2009-06 | AF43: 2010-06 | AG43: 2011-06 | AH43: 2012-06 | AI43: 2013-06 | AJ43: 2014-06 | AK43: 2015-06 | AL43: Latest Qtr | AO43: 2005-12 | AP43: 2006-12 | AQ43: 2007-12 | AR43: 2008-12 | AS43: 2009-12 | AT43: 2010-12 | AU43: 2011-12 | AV43: 2012-12 | AW43: 2013-12 | AX43: 2014-12 | AY43: Latest Qtr | BB43: 2005-05 | BC43: 2006-05 | BD43: 2007-05 | BE43: 2008-12 | BF43: 2009-12 | BG43: 2010-12 | BH43: 2011-12 | BI43: 2012-12 | BJ43: 2013-12 | BK43: 2014-12 | BL43: Latest Qtr
A44: Revenue % | N44: Revenue % | AA44: Revenue % | AN44: Revenue % | BA44: Revenue %
A45: Year over Year | B45: 38.65 | C45: 24.29 | D45: 35.3 | E45: 32.1 | F45: 52.02 | G45: 65.96 | H45: 44.58 | I45: 9.2 | J45: 6.95 | K45: 27.86 | L45: 22.26 | N45: Year over Year | O45: 8.3 | P45: 26.28 | Q45: 7.35 | R45: -2.58 | S45: -9.56 | T45: 7.41 | U45: 1.63 | V45: -2.8 | W45: 3.45 | X45: 5.88 | Y45: 9.39 | AA45: Year over Year | AB45: 7.16 | AC45: 9.34 | AD45: 15.81 | AE45: -29.7 | AF45: 16.38 | AG45: 12.12 | AH45: 15.69 | AI45: -1.52 | AJ45: 24.45 | AK45: 15.08 | AL45: 14.13 | AN45: Year over Year | AV45: 124.56 | AW45: 87.4 | AX45: 41.44 | AY45: 42.99 | BA45: Year over Year | BC45: -29.7 | BD45: 117.03 | BE45: 92.21 | BF45: 67.89 | BG45: 12.55 | BH45: 11.94 | BI45: 4.07 | BJ45: 2.74 | BK45: 6.11
A46: 3-Year Average | B46: 45.99 | C46: 42.6 | D46: 32.6 | E46: 30.48 | F46: 39.54 | G46: 49.37 | H46: 53.94 | I46: 37.86 | J46: 19.08 | K46: 14.3 | N46: 3-Year Average | O46: 9.13 | P46: 14.09 | Q46: 13.65 | R46: 9.71 | S46: -1.84 | T46: -1.82 | U46: -0.43 | V46: 2 | W46: 0.73 | X46: 2.11 | AA46: 3-Year Average | AB46: 13.38 | AC46: 9.41 | AD46: 10.71 | AE46: -3.81 | AF46: -1.78 | AG46: -2.84 | AH46: 14.71 | AI46: 8.5 | AJ46: 12.34 | AK46: 12.15 | AN46: 3-Year Average | AX46: 81.23 | BA46: 3-Year Average | BC46: -13.22 | BD46: -4.21 | BE46: 50.23 | BF46: 91.47 | BG46: 59.46 | BH46: 28.37 | BI46: 9.45 | BJ46: 6.18 | BK46: 4.3
A47: 5-Year Average | B47: 29.21 | C47: 33.12 | D47: 39.23 | E47: 38.97 | F47: 36.17 | G47: 41.16 | H47: 45.49 | I47: 39.39 | J47: 33.63 | K47: 29.08 | N47: 5-Year Average | O47: 6.76 | P47: 11.82 | Q47: 11.99 | R47: 9.2 | S47: 5.28 | T47: 5.11 | U47: 0.64 | V47: -1.34 | W47: -0.15 | X47: 3.05 | AA47: 5-Year Average | AB47: 13.6 | AC47: 14.23 | AD47: 13.04 | AE47: 1.29 | AF47: 2.11 | AG47: 3.04 | AH47: 4.21 | AI47: 0.89 | AJ47: 13.09 | AK47: 12.84 | AN47: 5-Year Average | BA47: 5-Year Average | BC47: -19.4 | BD47: 1.9 | BE47: 28.17 | BF47: 29.1 | BG47: 45.53 | BH47: 58.16 | BI47: 38.65 | BJ47: 17.73 | BK47: 7.41
A48: 10-Year Average | B48: 6.98 | C48: 12.99 | D48: 18.52 | E48: 21.47 | F48: 23.37 | G48: 35.05 | H48: 39.17 | I48: 39.31 | J48: 36.27 | K48: 32.58 | N48: 10-Year Average | O48: 5.54 | P48: 7.59 | Q48: 8.46 | R48: 6.24 | S48: 4.99 | T48: 5.93 | U48: 6.08 | V48: 5.12 | W48: 4.42 | X48: 4.16 | AA48: 10-Year Average | AB48: 9.08 | AC48: 9.19 | AD48: 10.51 | AE48: 6.78 | AF48: 7.2 | AG48: 8.19 | AH48: 9.1 | AI48: 6.79 | AJ48: 7.03 | AK48: 7.34 | AN48: 10-Year Average | BA48: 10-Year Average | BC48: -0.93 | BD48: 5.82 | BE48: 18.3 | BF48: 18.89 | BG48: 17.39 | BH48: 15.04 | BI48: 19.89 | BJ48: 23.12 | BK48: 18.35
A49: Operating Income % | N49: Operating Income % | AA49: Operating Income % | AN49: Operating Income % | BA49: Operating Income %
A50: Year over Year | B50: 48.67 | C50: 79.74 | D50: 42.32 | E50: 87.09 | F50: 56.6 | G50: 83.79 | H50: 63.48 | I50: -11.3 | J50: 7.15 | K50: 35.67 | L50: 30.97 | N50: Year over Year | O50: 4.49 | P50: 3.91 | Q50: 29.16 | R50: -48.35 | S50: 25.32 | T50: 46.51 | U50: -21.43 | V50: 9.72 | W50: 43.73 | X50: -4.88 | Y50: -1.79 | AA50: Year over Year | AB50: 13.18 | AC50: -2.73 | AD50: -64.15 | AG50: 122.14 | AH50: 57.98 | AI50: -32.97 | AJ50: 63.84 | AK50: 42.42 | AL50: 13.55 | AN50: Year over Year | AV50: 38.26 | AW50: 84.09 | AX50: 89.49 | AY50: 105.37 | BA50: Year over Year | BE50: 99.02 | BF50: 430.89 | BG50: 0.26 | BH50: -35.4 | BI50: 28.49 | BJ50: 47.97 | BK50: 30.33
A51: 3-Year Average | C51: 138.25 | D51: 56.09 | E51: 68.52 | F51: 60.96 | G51: 75.28 | H51: 67.57 | I51: 38.65 | J51: 15.82 | K51: 8.84 | N51: 3-Year Average | O51: 4.6 | P51: -0.28 | Q51: 11.93 | R51: -11.5 | S51: -5.8 | T51: -1.76 | U51: 12.99 | V51: 8.1 | W51: 7.41 | X51: 14.47 | AA51: 3-Year Average | AB51: 33.52 | AC51: 14.94 | AD51: -26.65 | AF51: -39.5 | AG51: 11.12 | AI51: 32.99 | AJ51: 20.16 | AK51: 16.08 | AN51: 3-Year Average | AX51: 68.96 | BA51: 3-Year Average | BD51: 1.84 | BE51: 28.83 | BG51: 116.1 | BH51: 50.94 | BI51: -5.94 | BJ51: 7.1 | BK51: 35.32
A52: 5-Year Average | C52: 203.93 | E52: 104.78 | F52: 61.96 | G52: 68.97 | H52: 65.8 | I52: 50.84 | J52: 34.93 | K52: 31.11 | N52: 5-Year Average | O52: -0.37 | P52: 21.88 | Q52: 8.96 | R52: -7.93 | S52: -1.92 | T52: 4.94 | U52: -0.77 | V52: -3.95 | W52: 17.87 | X52: 11.54 | AA52: 5-Year Average | AB52: 41.02 | AC52: 30.21 | AD52: -3.66 | AF52: -24.6 | AG52: -13.71 | AH52: -4.92 | AI52: 7.76 | AK52: 40.57 | AN52: 5-Year Average | BA52: 5-Year Average | BF52: 65.56 | BG52: 58.7 | BI52: 58.61 | BJ52: 45.58 | BK52: 9.93
A53: 10-Year Average | D53: 37.44 | E53: 41.73 | F53: 42.78 | H53: 124.48 | J53: 66.23 | K53: 45.72 | N53: 10-Year Average | O53: 7.18 | P53: 7.45 | Q53: 11.62 | R53: -2.23 | S53: -2.38 | T53: 2.25 | U53: 9.98 | V53: 2.3 | W53: 4.17 | X53: 4.6 | AA53: 10-Year Average | AB53: 14.18 | AC53: 14.25 | AD53: 3.27 | AF53: -3.46 | AG53: 10.31 | AH53: 11.27 | AI53: 1.89 | AJ53: 2.62 | AK53: 2.95 | AN53: 10-Year Average | BA53: 10-Year Average | BD53: -9.41 | BF53: 16.33 | BG53: 15.83 | BH53: 6.37 | BK53: 36.44
A54: Net Income % | N54: Net Income % | AA54: Net Income % | AN54: Net Income % | BA54: Net Income %
A55: Year over Year | B55: 48.99 | C55: 75.77 | D55: 38.27 | E55: 70.36 | F55: 70.16 | G55: 84.99 | H55: 60.99 | I55: -11.25 | J55: 6.68 | K55: 35.14 | N55: Year over Year | O55: 3.94 | P55: 2.61 | Q55: 47.81 | R55: -34.69 | S55: -21.53 | T55: 88.72 | U55: -37 | V55: 2.82 | W55: 106.23 | X55: -21.4 | AA55: Year over Year | AB55: 9.64 | AC55: 22.98 | AD55: -65.67 | AG55: -14.39 | AH55: 142.46 | AI55: -56.79 | AJ55: 64.8 | AK55: 46.01 | AN55: Year over Year | AV55: 31.08 | AW55: 87.77 | AX55: 111.44 | BA55: Year over Year | BE55: 73.15 | BF55: 413.44 | BG55: -6.99 | BH55: -49.81 | BI55: 50.52 | BJ55: 65.58 | BK55: 53.05
A56: 3-Year Average | B56: 206.62 | C56: 133.11 | D56: 53.56 | E56: 60.57 | F56: 58.85 | G56: 75.03 | H56: 71.77 | I56: 38.26 | J56: 15.08 | K56: 8.56 | N56: 3-Year Average | P56: 1.51 | Q56: 16.38 | R56: -0.32 | S56: -8.84 | T56: -1.11 | U56: -2.28 | V56: 6.93 | W56: 10.14 | X56: 18.56 | AA56: 3-Year Average | AB56: 34.29 | AC56: 25.75 | AD56: -22.64 | AF56: -20.33 | AG56: 8.04 | AI56: -3.56 | AJ56: 19.97 | AK56: 1.31 | AN56: 3-Year Average | AX56: 73.3 | BA56: 3-Year Average | BD56: -22.93 | BE56: 4.8 | BG56: 97.13 | BH56: 33.83 | BI56: -11.1 | BJ56: 7.75 | BK56: 56.25
A57: 5-Year Average | C57: 121.89 | D57: 133.93 | E57: 97.22 | F57: 60.03 | G57: 67.11 | H57: 64.2 | I57: 50.27 | J57: 36.84 | K57: 30.67 | N57: 5-Year Average | O57: 2.83 | P57: 83.17 | R57: 0.19 | S57: -4.18 | T57: 7.96 | U57: -2.07 | V57: -8.93 | W57: 14.62 | X57: 14.66 | AA57: 5-Year Average | AB57: 51.15 | AC57: 40.42 | AD57: 0.44 | AF57: -7.37 | AG57: -11.85 | AH57: 0.97 | AI57: 5.73 | AK57: 16.63 | AN57: 5-Year Average | BA57: 5-Year Average | BF57: 36.2 | BG57: 36.32 | BI57: 47.03 | BJ57: 42.97 | BK57: 12.23
A58: 10-Year Average | D58: 31.65 | E58: 29.92 | F58: 33.39 | H58: 90.88 | I58: 87.49 | J58: 64.28 | K58: 44.61 | N58: 10-Year Average | O58: 7.28 | P58: 10.75 | R58: 2.55 | S58: -0.56 | T58: 5.37 | U58: 33.93 | W58: 7.16 | X58: 4.82 | AA58: 10-Year Average | AB58: 17.25 | AC58: 19.07 | AD58: 7.94 | AF58: 8.1 | AG58: 15.43 | AH58: 19.07 | AI58: 3.05 | AJ58: 4.04 | AK58: 3.94 | AN58: 10-Year Average | BA58: 10-Year Average | BD58: -5.73 | BF58: 16.56 | BG58: 15.13 | BH58: 4.45 | BK58: 24.3
A59: EPS % | N59: EPS % | AA59: EPS % | AN59: EPS % | BA59: EPS %
A60: Year over Year | B60: 45.51 | C60: 73.13 | D60: 36.39 | E60: 69.4 | F60: 66.85 | G60: 82.71 | H60: 59.5 | I60: -9.97 | J60: 13.58 | K60: 42.95 | L60: 38.08 | N60: Year over Year | O60: 4.92 | P60: -8.4 | Q60: 41.27 | R60: -31.34 | S60: -21.09 | T60: 83.64 | U60: -37.39 | V60: 1.4 | W60: 102.37 | X60: -20.21 | Y60: 2.43 | AA60: Year over Year | AB60: 13.29 | AC60: 25.87 | AD60: -63.35 | AG60: -15.56 | AH60: 140.53 | AI60: -55.36 | AJ60: 64.71 | AK60: 44.05 | AL60: 1.69 | AN60: Year over Year | AX60: 95.74 | AY60: 30 | BA60: Year over Year | BE60: 49.95 | BF60: 386.98 | BG60: -10.11 | BH60: -50 | BI60: 48 | BJ60: 61.08 | BK60: 53.02
A61: 3-Year Average | B61: 188.03 | C61: 122.87 | D61: 50.9 | E61: 58.74 | F61: 56.8 | G61: 72.85 | H61: 69.41 | I61: 37.92 | J61: 17.71 | K61: 13.49 | N61: 3-Year Average | P61: -1.37 | Q61: 10.73 | R61: -3.86 | S61: -8.53 | T61: -0.17 | U61: -3.19 | V61: 5.25 | W61: 8.71 | X61: 17.86 | AA61: 3-Year Average | AB61: 34.25 | AC61: 27.64 | AD61: -19.45 | AF61: -21.88 | AG61: 3.17 | AI61: -3.21 | AJ61: 20.93 | AK61: 1.93 | AN61: 3-Year Average | BA61: 3-Year Average | BD61: -23.1 | BE61: -1.82 | BG61: 80.54 | BH61: 29.84 | BI61: -12.71 | BJ61: 6.03 | BK61: 53.94
A62: 5-Year Average | C62: 112.83 | D62: 124.02 | E62: 91.24 | F62: 57.56 | G62: 64.9 | H62: 62.22 | I62: 49.29 | J62: 37.82 | K62: 33.62 | N62: 5-Year Average | O62: 3.55 | P62: 78.83 | R62: -1.43 | S62: -5.96 | T62: 5.18 | U62: -2.52 | V62: -8.78 | W62: 13.24 | X62: 13.49 | AA62: 5-Year Average | AB62: 50.85 | AC62: 40.9 | AD62: 2.22 | AF62: -7.43 | AG62: -12.71 | AH62: -0.64 | AI62: 3.35 | AK62: 16.56 | AN62: 5-Year Average | BA62: 5-Year Average | BF62: 29.36 | BG62: 28.71 | BI62: 38.45 | BJ62: 39.15 | BK62: 10.39
A63: 10-Year Average | D63: 26.15 | E63: 25.97 | F63: 30.11 | H63: 85.81 | I63: 82.88 | J63: 62.35 | K63: 45.1 | N63: 10-Year Average | O63: 8.41 | P63: 10.55 | R63: 2.61 | S63: -0.49 | T63: 4.36 | U63: 32.03 | W63: 5.65 | X63: 3.31 | AA63: 10-Year Average | AB63: 16.85 | AC63: 20.36 | AD63: 9.99 | AF63: 8.1 | AG63: 14.75 | AH63: 18.32 | AI63: 2.79 | AJ63: 4 | AK63: 3.87 | AN63: 10-Year Average | BA63: 10-Year Average | BD63: -6.22 | BF63: 12.89 | BG63: 11.49 | BH63: 1.13 | BK63: 20.02
A65: Key Ratios -> Cash Flow | N65: Key Ratios -> Cash Flow | AA65: Key Ratios -> Cash Flow | AN65: Key Ratios -> Cash Flow | BA65: Key Ratios -> Cash Flow
A66: Cash Flow Ratios | B66: 2006-09 | C66: 2007-09 | D66: 2008-09 | E66: 2009-09 | F66: 2010-09 | G66: 2011-09 | H66: 2012-09 | I66: 2013-09 | J66: 2014-09 | K66: 2015-09 | L66: TTM | N66: Cash Flow Ratios | O66: 2005-12 | P66: 2006-12 | Q66: 2007-12 | R66: 2008-12 | S66: 2009-12 | T66: 2010-12 | U66: 2011-12 | V66: 2012-12 | W66: 2013-12 | X66: 2014-12 | Y66: TTM | AA66: Cash Flow Ratios | AB66: 2006-06 | AC66: 2007-06 | AD66: 2008-06 | AE66: 2009-06 | AF66: 2010-06 | AG66: 2011-06 | AH66: 2012-06 | AI66: 2013-06 | AJ66: 2014-06 | AK66: 2015-06 | AL66: TTM | AN66: Cash Flow Ratios | AO66: 2005-12 | AP66: 2006-12 | AQ66: 2007-12 | AR66: 2008-12 | AS66: 2009-12 | AT66: 2010-12 | AU66: 2011-12 | AV66: 2012-12 | AW66: 2013-12 | AX66: 2014-12 | AY66: TTM | BA66: Cash Flow Ratios | BB66: 2005-05 | BC66: 2006-05 | BD66: 2007-05 | BE66: 2008-12 | BF66: 2009-12 | BG66: 2010-12 | BH66: 2011-12 | BI66: 2012-12 | BJ66: 2013-12 | BK66: 2014-12 | BL66: TTM
A67: Operating Cash Flow Growth % YOY | B67: -12.43 | C67: 146.4 | D67: 75.43 | E67: 5.87 | F67: 83.04 | G67: 101.82 | H67: 35.51 | I67: 5.53 | J67: 11.27 | K67: 36.09 | N67: Operating Cash Flow Growth % YOY | O67: 10.96 | P67: 0.79 | Q67: 5.07 | R67: -64.95 | S67: 374.01 | T67: -30.45 | U67: -50.83 | V67: 31.32 | W67: 81.32 | X67: 17.19 | AA67: Operating Cash Flow Growth % YOY | AB67: -4.73 | AC67: -46.15 | AD67: 47.14 | AE67: -75.17 | AF67: 205.67 | AG67: 37.98 | AH67: -19.06 | AI67: -84.31 | AJ67: 1305.31 | AK67: -6.68 | AN67: Operating Cash Flow Growth % YOY | AV67: -45.07 | AW67: 1124.92 | AX67: -5.42 | BA67: Operating Cash Flow Growth % YOY | BE67: 112.69 | BF67: 21.61 | BG67: -34.97 | BH67: 11.17 | BI67: 146.2 | BJ67: 7.44 | BK67: -2.73
A68: Free Cash Flow Growth % YOY | B68: -31.3 | C68: 186.88 | D68: 87.27 | E68: 6.54 | F68: 84.15 | G68: 82.57 | H68: 37.83 | I68: 7.57 | J68: 11.91 | K68: 39.84 | N68: Free Cash Flow Growth % YOY | O68: 36.75 | P68: -19.38 | Q68: 27.24 | T68: -54.61 | W68: 210.91 | X68: 10.96 | AA68: Free Cash Flow Growth % YOY | AB68: 8.85 | AC68: -84.96 | AD68: 338.99 | AG68: 23.83 | AH68: -30.18 | AK68: -17.22 | AN68: Free Cash Flow Growth % YOY | AX68: -17.5 | BA68: Free Cash Flow Growth % YOY | BE68: 169.57 | BF68: -27.11 | BG68: -85.73 | BH68: -4.74 | BI68: 2177.36 | BJ68: 13.72 | BK68: -12.26
A69: Cap Ex as a % of Sales | B69: 3.4 | C69: 4.11 | D69: 3.69 | E69: 2.83 | F69: 3.25 | G69: 6.88 | H69: 6.01 | I69: 5.31 | J69: 5.37 | K69: 4.92 | L69: 4.92 | N69: Cap Ex as a % of Sales | O69: 3.45 | P69: 3.19 | Q69: 2.76 | R69: 2.89 | S69: 3.16 | T69: 3.38 | U69: 3.26 | V69: 2.62 | W69: 3.08 | X69: 3.62 | Y69: 3.23 | AA69: Cap Ex as a % of Sales | AB69: 4.02 | AC69: 4.92 | AD69: 3.38 | AE69: 2.76 | AF69: 1.78 | AG69: 2.87 | AH69: 2.58 | AI69: 2.37 | AJ69: 2.94 | AK69: 3.13 | AL69: 3.07 | AN69: Cap Ex as a % of Sales | AU69: 0.83 | AV69: 3.38 | AW69: 1.86 | AX69: 1.97 | AY69: 2.05 | BA69: Cap Ex as a % of Sales | BB69: 6.1 | BC69: 12.91 | BD69: 5.13 | BE69: 3.7 | BF69: 4.83 | BG69: 4.24 | BH69: 4.27 | BI69: 3.33 | BJ69: 3.02 | BK69: 3.52 | BL69: 3.2
A70: Free Cash Flow/Sales % | B70: 8.09 | C70: 18.68 | D70: 25.85 | E70: 20.85 | F70: 25.26 | G70: 27.79 | H70: 26.49 | I70: 26.09 | J70: 27.3 | K70: 29.86 | L70: 29.86 | N70: Free Cash Flow/Sales % | O70: 2.7 | P70: 1.73 | Q70: 2.05 | R70: -1.16 | S70: 5.9 | T70: 2.49 | U70: -0.42 | V70: 1.21 | W70: 3.64 | X70: 3.82 | Y70: 3.57 | AA70: Free Cash Flow/Sales % | AB70: 8.29 | AC70: 1.14 | AD70: 4.33 | AE70: -0.04 | AF70: 5.36 | AG70: 5.92 | AH70: 3.57 | AI70: -1.39 | AJ70: 8.13 | AK70: 5.85 | AL70: 3.01 | AN70: Free Cash Flow/Sales % | AU70: 5.67 | AV70: -1.79 | AW70: 8.54 | AX70: 4.98 | AY70: 7.85 | BA70: Free Cash Flow/Sales % | BB70: 2.32 | BC70: -19.13 | BD70: 4.32 | BE70: 7.4 | BF70: 3.21 | BG70: 0.41 | BH70: 0.35 | BI70: 7.58 | BJ70: 8.39 | BK70: 6.94 | BL70: 7.31
A71: Free Cash Flow/Net Income | B71: 0.79 | C71: 1.28 | D71: 1.74 | E71: 1.09 | F71: 1.18 | G71: 1.16 | H71: 0.99 | I71: 1.2 | J71: 1.26 | K71: 1.31 | L71: 1.31 | N71: Free Cash Flow/Net Income | O71: 0.92 | P71: 0.72 | Q71: 0.62 | R71: -0.53 | S71: 3.08 | T71: 0.74 | U71: -0.2 | V71: 0.55 | W71: 0.83 | X71: 1.17 | Y71: 1.11 | AA71: Free Cash Flow/Net Income | AB71: 1.05 | AC71: 0.13 | AD71: 1.65 | AF71: 1.14 | AG71: 1.64 | AH71: 0.47 | AI71: -0.42 | AJ71: 1.85 | AK71: 1.05 | AL71: 0.55 | AN71: Free Cash Flow/Net Income | AU71: 0.54 | AV71: -0.29 | AW71: 1.39 | AX71: 0.54 | AY71: 0.74 | BA71: Free Cash Flow/Net Income | BB71: 0.43 | BC71: 1.18 | BD71: 2.47 | BE71: 4.99 | BF71: 0.71 | BG71: 0.11 | BH71: 0.21 | BI71: 3.12 | BJ71: 2.14 | BK71: 1.23 | BL71: 1.05
A73: Key Ratios -> Financial Health | N73: Key Ratios -> Financial Health | AA73: Key Ratios -> Financial Health | AN73: Key Ratios -> Financial Health | BA73: Key Ratios -> Financial Health
A74: Balance Sheet Items (in %) | B74: 2006-09 | C74: 2007-09 | D74: 2008-09 | E74: 2009-09 | F74: 2010-09 | G74: 2011-09 | H74: 2012-09 | I74: 2013-09 | J74: 2014-09 | K74: 2015-09 | L74: Latest Qtr | N74: Balance Sheet Items (in %) | O74: 2005-12 | P74: 2006-12 | Q74: 2007-12 | R74: 2008-12 | S74: 2009-12 | T74: 2010-12 | U74: 2011-12 | V74: 2012-12 | W74: 2013-12 | X74: 2014-12 | Y74: Latest Qtr | AA74: Balance Sheet Items (in %) | AB74: 2006-06 | AC74: 2007-06 | AD74: 2008-06 | AE74: 2009-06 | AF74: 2010-06 | AG74: 2011-06 | AH74: 2012-06 | AI74: 2013-06 | AJ74: 2014-06 | AK74: 2015-06 | AL74: Latest Qtr | AN74: Balance Sheet Items (in %) | AO74: 2005-12 | AP74: 2006-12 | AQ74: 2007-12 | AR74: 2008-12 | AS74: 2009-12 | AT74: 2010-12 | AU74: 2011-12 | AV74: 2012-12 | AW74: 2013-12 | AX74: 2014-12 | AY74: Latest Qtr | BA74: Balance Sheet Items (in %) | BB74: 2005-05 | BC74: 2006-05 | BD74: 2007-05 | BE74: 2008-12 | BF74: 2009-12 | BG74: 2010-12 | BH74: 2011-12 | BI74: 2012-12 | BJ74: 2013-12 | BK74: 2014-12 | BL74: Latest Qtr
A75: Cash & Short-Term Investments | B75: 58.76 | C75: 60.7 | D75: 61.89 | E75: 49.4 | F75: 34.08 | G75: 22.3 | H75: 16.54 | I75: 19.59 | J75: 10.82 | K75: 14.32 | L75: 14.32 | N75: Cash & Short-Term Investments | O75: 6.35 | P75: 1.89 | Q75: 1.43 | R75: 1.08 | S75: 9.14 | T75: 8.78 | U75: 7.31 | V75: 7.59 | W75: 8.88 | X75: 5.13 | Y75: 3.56 | AA75: Cash & Short-Term Investments | AB75: 12.39 | AC75: 4.23 | AD75: 7.89 | AE75: 23.7 | AF75: 25.25 | AG75: 30.12 | AH75: 25.88 | AI75: 14.35 | AJ75: 14.09 | AK75: 10.95 | AL75: 6.92 | AN75: Cash & Short-Term Investments | AV75: 14.79 | AW75: 23.06 | AX75: 46.01 | AY75: 42.43 | BA75: Cash & Short-Term Investments | BB75: 22.9 | BD75: 9.65 | BE75: 7.96 | BF75: 14.3 | BG75: 8.39 | BH75: 3.63 | BI75: 5.02 | BJ75: 2.6 | BK75: 8.58 | BL75: 13.36
A76: Accounts Receivable | B76: 7.28 | C76: 15.9 | D76: 11.89 | E76: 10.65 | F76: 13.2 | G76: 10.07 | H76: 10.62 | I76: 9.97 | J76: 11.74 | K76: 10.45 | L76: 10.45 | N76: Accounts Receivable | O76: 25.23 | P76: 19.28 | Q76: 18.59 | R76: 15.54 | S76: 16.56 | T76: 14.62 | U76: 13.87 | V76: 13.24 | W76: 12.9 | X76: 13.84 | Y76: 14.85 | AA76: Accounts Receivable | AB76: 18.88 | AC76: 19.39 | AD76: 20.31 | AE76: 16.68 | AF76: 20.23 | AG76: 18.94 | AH76: 18.39 | AI76: 22.34 | AJ76: 21.68 | AK76: 17.27 | AL76: 18.01 | AN76: Accounts Receivable | AV76: 32.51 | AW76: 27.9 | AX76: 20.05 | AY76: 9.98 | BA76: Accounts Receivable | BB76: 38.49 | BC76: 30.57 | BD76: 37.98 | BE76: 47.52 | BF76: 39.92 | BG76: 25.53 | BH76: 27.53 | BI76: 34.55 | BJ76: 33.25 | BK76: 39.73 | BL76: 27.86
A77: Inventory | B77: 1.57 | C77: 1.37 | D77: 1.29 | E77: 0.96 | F77: 1.4 | G77: 0.67 | H77: 0.45 | I77: 0.85 | J77: 0.91 | K77: 0.81 | L77: 0.81 | N77: Inventory | O77: 19.29 | P77: 16.92 | Q77: 19.02 | R77: 19.15 | S77: 14.56 | T77: 17.92 | U77: 15.51 | V77: 15.29 | W77: 15.49 | X77: 13.7 | Y77: 15 | AA77: Inventory | AB77: 14.65 | AC77: 18.06 | AD77: 13.82 | AE77: 13.39 | AF77: 13.81 | AG77: 13.83 | AH77: 13.49 | AI77: 16.99 | AJ77: 16.05 | AK77: 11.7 | AL77: 14.56 | AN77: Inventory | AV77: 24.49 | AW77: 25.47 | AX77: 16.68 | AY77: 23.94 | BA77: Inventory | BB77: 8.71 | BC77: 31.99 | BD77: 20.25 | BE77: 12.08 | BF77: 16.95 | BG77: 14.22 | BH77: 11.17 | BI77: 12.24 | BJ77: 12.34 | BK77: 7.92 | BL77: 12.49
A78: Other Current Assets | B78: 16.72 | C78: 8.66 | D78: 12.6 | E78: 5.43 | F78: 6.76 | G78: 5.62 | H78: 5.14 | I78: 4.99 | J78: 6.09 | K78: 5.19 | L78: 5.19 | N78: Other Current Assets | O78: 6.23 | P78: 8.57 | Q78: 7.75 | R78: 8.9 | S78: 6.28 | T78: 5.63 | U78: 5.63 | V78: 8.23 | W78: 7.91 | X78: 7.82 | Y78: 6.75 | AA78: Other Current Assets | AB78: 7.14 | AC78: 7.47 | AD78: 8.88 | AE78: 6.84 | AF78: 6.19 | AG78: 6.03 | AH78: 9.01 | AI78: 10.89 | AJ78: 7.78 | AK78: 9.81 | AL78: 9.9 | AN78: Other Current Assets | AV78: 8.81 | AW78: 5 | AX78: 6.95 | AY78: 6.61 | BA78: Other Current Assets | BB78: 6.05 | BC78: 8.36 | BD78: 4.14 | BE78: 1.27 | BF78: 1.77 | BG78: 2.27 | BH78: 2.76 | BI78: 3.8 | BJ78: 3.72 | BK78: 3.31 | BL78: 3.09
A79: Total Current Assets | B79: 84.33 | C79: 86.62 | D79: 87.66 | E79: 66.43 | F79: 55.44 | G79: 38.66 | H79: 32.75 | I79: 35.4 | J79: 29.56 | K79: 30.77 | L79: 30.77 | N79: Total Current Assets | O79: 57.1 | P79: 46.66 | Q79: 46.79 | R79: 44.66 | S79: 46.54 | T79: 46.94 | U79: 42.3 | V79: 44.34 | W79: 45.17 | X79: 40.49 | Y79: 40.15 | AA79: Total Current Assets | AB79: 53.06 | AC79: 49.15 | AD79: 50.91 | AE79: 60.61 | AF79: 65.49 | AG79: 68.93 | AH79: 66.77 | AI79: 64.56 | AJ79: 59.6 | AK79: 49.73 | AL79: 49.39 | AN79: Total Current Assets | AV79: 80.6 | AW79: 81.43 | AX79: 89.69 | AY79: 82.96 | BA79: Total Current Assets | BB79: 76.15 | BC79: 70.92 | BD79: 72.01 | BE79: 68.82 | BF79: 72.94 | BG79: 50.41 | BH79: 45.08 | BI79: 55.61 | BJ79: 51.91 | BK79: 59.54 | BL79: 56.8
A80: Net PP&E | B80: 7.45 | C80: 7.23 | D80: 6.2 | E80: 6.22 | F80: 6.34 | G80: 6.68 | H80: 8.78 | I80: 8.02 | J80: 8.9 | K80: 7.74 | L80: 7.74 | N80: Net PP&E | O80: 30.44 | P80: 22.75 | Q80: 22.93 | R80: 22.06 | S80: 20.65 | T80: 20.11 | U80: 20.43 | V80: 19.71 | W80: 19.56 | X80: 19.9 | Y80: 18.77 | AA80: Net PP&E | AB80: 22.17 | AC80: 23.6 | AD80: 22.64 | AE80: 20.81 | AF80: 16.51 | AG80: 15.38 | AH80: 13.57 | AI80: 13.14 | AJ80: 12.36 | AK80: 9.32 | AL80: 9.42 | AN80: Net PP&E | AV80: 9.1 | AW80: 7.3 | AX80: 4.53 | AY80: 5.59 | BA80: Net PP&E | BB80: 5.32 | BC80: 7.05 | BD80: 5.21 | BE80: 3.1 | BF80: 3.81 | BG80: 3.37 | BH80: 4.69 | BI80: 4.22 | BJ80: 4.72 | BK80: 2.98 | BL80: 3.04
A81: Intangibles | B81: 1.15 | C81: 1.66 | D81: 1.24 | E81: 1.18 | F81: 1.44 | G81: 3.81 | H81: 3.04 | I81: 2.78 | J81: 3.78 | K81: 3.1 | L81: 3.1 | N81: Intangibles | O81: 3.44 | P81: 25.46 | Q81: 25.8 | R81: 26.23 | S81: 23.35 | T81: 22.59 | U81: 22.95 | V81: 22.4 | W81: 22.04 | X81: 28.05 | Y81: 29.27 | AA81: Intangibles | AB81: 16.19 | AC81: 16.09 | AD81: 15.44 | AE81: 3.29 | AF81: 4.14 | AG81: 3.9 | AH81: 5.7 | AI81: 7.24 | AJ81: 17.52 | AK81: 33 | AL81: 32.54 | AN81: Intangibles | AV81: 3.43 | AW81: 3.95 | AX81: 2.29 | AY81: 7.41 | BA81: Intangibles | BB81: 14.51 | BC81: 19.05 | BD81: 18.51 | BE81: 26.5 | BF81: 22 | BG81: 41.76 | BH81: 45.22 | BI81: 37.66 | BJ81: 41.7 | BK81: 36.01 | BL81: 38.72
A82: Other Long-Term Assets | B82: 7.07 | C82: 4.49 | D82: 4.89 | E82: 26.17 | F82: 36.78 | G82: 50.85 | H82: 55.43 | I82: 53.8 | J82: 57.77 | K82: 58.39 | L82: 58.39 | N82: Other Long-Term Assets | O82: 9.01 | P82: 5.12 | Q82: 4.48 | R82: 7.05 | S82: 9.45 | T82: 10.36 | U82: 14.31 | V82: 13.55 | W82: 13.22 | X82: 11.56 | Y82: 11.8 | AA82: Other Long-Term Assets | AB82: 8.59 | AC82: 11.16 | AD82: 11.01 | AE82: 15.3 | AF82: 13.86 | AG82: 11.79 | AH82: 13.95 | AI82: 15.05 | AJ82: 10.52 | AK82: 7.96 | AL82: 8.65 | AN82: Other Long-Term Assets | AV82: 6.87 | AW82: 7.31 | AX82: 3.49 | AY82: 4.03 | BA82: Other Long-Term Assets | BB82: 4.02 | BC82: 2.98 | BD82: 4.26 | BE82: 1.58 | BF82: 1.25 | BG82: 4.46 | BH82: 5 | BI82: 2.51 | BJ82: 1.67 | BK82: 1.47 | BL82: 1.45
A83: Total Assets | B83: 100 | C83: 100 | D83: 100 | E83: 100 | F83: 100 | G83: 100 | H83: 100 | I83: 100 | J83: 100 | K83: 100 | L83: 100 | N83: Total Assets | O83: 100 | P83: 100 | Q83: 100 | R83: 100 | S83: 100 | T83: 100 | U83: 100 | V83: 100 | W83: 100 | X83: 100 | Y83: 100 | AA83: Total Assets | AB83: 100 | AC83: 100 | AD83: 100 | AE83: 100 | AF83: 100 | AG83: 100 | AH83: 100 | AI83: 100 | AJ83: 100 | AK83: 100 | AL83: 100 | AN83: Total Assets | AV83: 100 | AW83: 100 | AX83: 100 | AY83: 100 | BA83: Total Assets | BB83: 100 | BC83: 100 | BD83: 100 | BE83: 100 | BF83: 100 | BG83: 100 | BH83: 100 | BI83: 100 | BJ83: 100 | BK83: 100 | BL83: 100
A84: Accounts Payable | B84: 19.7 | C84: 19.61 | D84: 13.95 | E84: 11.79 | F84: 15.98 | G84: 12.57 | H84: 12.03 | I84: 10.81 | J84: 13.02 | K84: 12.22 | L84: 12.22 | N84: Accounts Payable | O84: 28.25 | P84: 21.22 | Q84: 23.27 | R84: 20.73 | S84: 21.92 | T84: 23.49 | U84: 23.13 | V84: 24.02 | W84: 24.86 | X84: 23.65 | Y84: 21.21 | AA84: Accounts Payable | AB84: 13.6 | AC84: 14.22 | AD84: 12.16 | AE84: 9.69 | AF84: 14.98 | AG84: 15.48 | AH84: 15.96 | AI84: 15.39 | AJ84: 16.91 | AK84: 15.5 | AL84: 14.98 | AN84: Accounts Payable | AV84: 21.79 | AW84: 28.75 | AX84: 13.76 | AY84: 13.22 | BA84: Accounts Payable | BB84: 19.13 | BC84: 35.59 | BD84: 40.1 | BE84: 48.88 | BF84: 42.16 | BG84: 29.1 | BH84: 21.43 | BI84: 36.78 | BJ84: 37.24 | BK84: 38.89 | BL84: 32.34
A85: Short-Term Debt | J85: 2.72 | K85: 3.79 | L85: 3.79 | N85: Short-Term Debt | O85: 6.01 | P85: 3.88 | Q85: 3.03 | R85: 4.4 | S85: 2.66 | T85: 2.01 | U85: 2.38 | V85: 3.36 | W85: 3.97 | X85: 4.01 | Y85: 6.68 | AA85: Short-Term Debt | AB85: 0.77 | AC85: 0.75 | AD85: 0.02 | AE85: 0.02 | AF85: 0.55 | AG85: 0.07 | AH85: 12.48 | AI85: 1.08 | AJ85: 0.95 | AK85: 0.09 | AL85: 0.09 | AN85: Short-Term Debt | AV85: 6.4 | AW85: 13.71 | BA85: Short-Term Debt | BB85: 0.05 | BC85: 5.46 | BD85: 0.05 | BG85: 14.22 | BH85: 16.61 | BI85: 10.97 | BK85: 1.76 | BL85: 2.18
A86: Taxes Payable | E86: 0.91 | F86: 0.28 | G86: 0.98 | H86: 0.87 | I86: 0.58 | J86: 0.52 | N86: Taxes Payable | AA86: Taxes Payable | AE86: 0.88 | AF86: 0.15 | AG86: 0.42 | AH86: 0.48 | AI86: 0.41 | AJ86: 0.64 | AK86: 1.28 | AL86: 1.36 | AN86: Taxes Payable | AV86: 2.49 | AW86: 6.25 | AX86: 0.3 | AY86: 0.55 | BA86: Taxes Payable | BB86: 0.04 | BD86: 0.23 | BF86: 0.84 | BG86: 0.49 | BH86: 0.71 | BI86: 0.72 | BJ86: 0.67 | BK86: 1.11 | BL86: 0.87
A87: Accrued Liabilities | B87: 6.92 | C87: 4.97 | D87: 9.4 | E87: 7.2 | F87: 6.45 | G87: 6.97 | H87: 4.76 | I87: 2.52 | J87: 3.32 | K87: 8.67 | L87: 8.67 | N87: Accrued Liabilities | O87: 10.67 | P87: 8.99 | Q87: 8.07 | R87: 9.43 | S87: 10.65 | T87: 10.04 | U87: 11.49 | V87: 10.59 | W87: 10.34 | X87: 10.12 | Y87: 8.83 | AA87: Accrued Liabilities | AB87: 17.59 | AC87: 13.96 | AD87: 19.12 | AE87: 19.24 | AF87: 18.1 | AG87: 18.27 | AH87: 14.68 | AI87: 16.41 | AJ87: 17.51 | AK87: 18.88 | AL87: 19.35 | AN87: Accrued Liabilities | AV87: 17.45 | AW87: 16.74 | AX87: 12.08 | AY87: 13.74 | BA87: Accrued Liabilities
A88: Other Short-Term Liabilities | B88: 10.99 | C88: 12.11 | D88: 12.26 | E88: 4.32 | F88: 4.85 | G88: 3.52 | H88: 4.23 | I88: 7.19 | J88: 7.78 | K88: 3.08 | L88: 3.08 | N88: Other Short-Term Liabilities | O88: 7.21 | P88: 9.16 | Q88: 7.7 | R88: 6.55 | S88: 4.13 | T88: 3.92 | U88: 4.47 | V88: 4.31 | W88: 4.54 | X88: 4.23 | Y88: 5.13 | AA88: Other Short-Term Liabilities | AB88: 4.95 | AC88: 3.59 | AD88: 0.78 | AN88: Other Short-Term Liabilities | AV88: 4.25 | AW88: 2.91 | AX88: 2.06 | AY88: 1.08 | BA88: Other Short-Term Liabilities | BB88: 12.67 | BC88: 11.22 | BD88: 11.01 | BE88: 13.72 | BF88: 11.75 | BG88: 8.02 | BH88: 9.75 | BI88: 7.41 | BJ88: 9.88 | BK88: 6.63 | BL88: 5.31
A89: Total Current Liabilities | B89: 37.61 | C89: 36.69 | D89: 35.61 | E89: 24.22 | F89: 27.56 | G89: 24.04 | H89: 21.89 | I89: 21.09 | J89: 27.37 | K89: 27.75 | L89: 27.75 | N89: Total Current Liabilities | O89: 52.15 | P89: 43.25 | Q89: 42.07 | R89: 41.11 | S89: 39.36 | T89: 39.46 | U89: 41.48 | V89: 42.28 | W89: 43.71 | X89: 42.01 | Y89: 41.84 | AA89: Total Current Liabilities | AB89: 36.91 | AC89: 32.52 | AD89: 32.08 | AE89: 29.83 | AF89: 33.78 | AG89: 34.25 | AH89: 43.6 | AI89: 33.3 | AJ89: 36.01 | AK89: 35.76 | AL89: 35.77 | AN89: Total Current Liabilities | AV89: 52.38 | AW89: 68.37 | AX89: 28.2 | AY89: 28.59 | BA89: Total Current Liabilities | BB89: 31.88 | BC89: 52.27 | BD89: 51.38 | BE89: 62.6 | BF89: 54.75 | BG89: 51.83 | BH89: 48.51 | BI89: 55.88 | BJ89: 47.79 | BK89: 48.39 | BL89: 40.7
A90: Long-Term Debt | I90: 8.19 | J90: 12.5 | K90: 18.41 | L90: 18.41 | N90: Long-Term Debt | O90: 9.03 | P90: 12.96 | Q90: 11.91 | R90: 14.79 | S90: 16.58 | T90: 14.08 | U90: 14.02 | V90: 12.63 | W90: 11.88 | X90: 17.72 | Y90: 17.85 | AA90: Long-Term Debt | AB90: 7.62 | AC90: 2.3 | AD90: 15.12 | AE90: 25.23 | AF90: 14.24 | AG90: 12.37 | AI90: 7.88 | AJ90: 12.59 | AK90: 18.22 | AL90: 18.17 | AN90: Long-Term Debt | AV90: 46.06 | AW90: 12.13 | BA90: Long-Term Debt | BB90: 0.18 | BC90: 0.14 | BD90: 0.08 | BG90: 14.04 | BH90: 10.97 | BI90: 5.02 | BK90: 11.21 | BL90: 11.3
A91: Other Long-Term Liabilities | B91: 4.36 | C91: 5.98 | D91: 11.25 | E91: 9.17 | F91: 8.87 | G91: 10.13 | H91: 10.97 | I91: 11.03 | J91: 12.02 | K91: 12.76 | L91: 12.76 | N91: Other Long-Term Liabilities | O91: 17.66 | P91: 20.14 | Q91: 18.11 | R91: 21.88 | S91: 19.79 | T91: 19.34 | U91: 16.96 | V91: 17.42 | W91: 12.74 | X91: 15.85 | Y91: 15.53 | AA91: Other Long-Term Liabilities | AB91: 3.31 | AC91: 5.63 | AD91: 5.41 | AE91: 5.86 | AF91: 7.59 | AG91: 6.83 | AH91: 8.14 | AI91: 7.98 | AJ91: 7.95 | AK91: 5.97 | AL91: 5.5 | AN91: Other Long-Term Liabilities | AV91: 33.89 | AW91: 20.73 | AX91: 1.93 | AY91: 2.72 | BA91: Other Long-Term Liabilities | BB91: 8 | BC91: 8.54 | BD91: 7.73 | BE91: 7.03 | BF91: 7.06 | BG91: 10.13 | BH91: 10.22 | BI91: 8.18 | BJ91: 9.17 | BK91: 8.97 | BL91: 8.91
A92: Total Liabilities | B92: 41.97 | C92: 42.67 | D92: 46.86 | E92: 33.39 | F92: 36.43 | G92: 34.16 | H92: 32.86 | I92: 40.31 | J92: 51.89 | K92: 58.91 | L92: 58.91 | N92: Total Liabilities | O92: 78.84 | P92: 76.34 | Q92: 72.08 | R92: 77.79 | S92: 75.73 | T92: 72.88 | U92: 72.46 | V92: 72.33 | W92: 68.32 | X92: 75.58 | Y92: 75.22 | AA92: Total Liabilities | AB92: 47.84 | AC92: 40.45 | AD92: 52.6 | AE92: 60.93 | AF92: 55.6 | AG92: 53.45 | AH92: 51.74 | AI92: 49.16 | AJ92: 56.55 | AK92: 59.95 | AL92: 59.44 | AN92: Total Liabilities | AV92: 132.33 | AW92: 101.22 | AX92: 30.13 | AY92: 31.31 | BA92: Total Liabilities | BB92: 40.06 | BC92: 60.95 | BD92: 59.19 | BE92: 69.63 | BF92: 61.81 | BG92: 75.99 | BH92: 69.69 | BI92: 69.08 | BJ92: 56.97 | BK92: 68.57 | BL92: 60.91
A93: Total Stockholders' Equity | B93: 58.03 | C93: 57.33 | D93: 53.14 | E93: 66.61 | F93: 63.57 | G93: 65.84 | H93: 67.14 | I93: 59.69 | J93: 48.11 | K93: 41.09 | L93: 41.09 | N93: Total Stockholders' Equity | O93: 21.16 | P93: 23.66 | Q93: 27.92 | R93: 22.21 | S93: 24.27 | T93: 27.12 | U93: 27.54 | V93: 27.67 | W93: 31.68 | X93: 24.42 | Y93: 24.78 | AA93: Total Stockholders' Equity | AB93: 52.16 | AC93: 59.55 | AD93: 47.4 | AE93: 39.07 | AF93: 44.4 | AG93: 46.55 | AH93: 48.26 | AI93: 50.84 | AJ93: 43.45 | AK93: 40.05 | AL93: 40.56 | AN93: Total Stockholders' Equity | AV93: -32.33 | AW93: -1.22 | AX93: 69.87 | AY93: 68.69 | BA93: Total Stockholders' Equity | BB93: 59.94 | BC93: 39.05 | BD93: 40.81 | BE93: 30.37 | BF93: 38.19 | BG93: 24.01 | BH93: 30.31 | BI93: 30.92 | BJ93: 43.03 | BK93: 31.43 | BL93: 39.09
A94: Total Liabilities & Equity | B94: 100 | C94: 100 | D94: 100 | E94: 100 | F94: 100 | G94: 100 | H94: 100 | I94: 100 | J94: 100 | K94: 100 | L94: 100 | N94: Total Liabilities & Equity | O94: 100 | P94: 100 | Q94: 100 | R94: 100 | S94: 100 | T94: 100 | U94: 100 | V94: 100 | W94: 100 | X94: 100 | Y94: 100 | AA94: Total Liabilities & Equity | AB94: 100 | AC94: 100 | AD94: 100 | AE94: 100 | AF94: 100 | AG94: 100 | AH94: 100 | AI94: 100 | AJ94: 100 | AK94: 100 | AL94: 100 | AN94: Total Liabilities & Equity | AO94: 100 | AP94: 100 | AQ94: 100 | AR94: 100 | AS94: 100 | AT94: 100 | AU94: 100 | AV94: 100 | AW94: 100 | AX94: 100 | AY94: 100 | BA94: Total Liabilities & Equity | BB94: 100 | BC94: 100 | BD94: 100 | BE94: 100 | BF94: 100 | BG94: 100 | BH94: 100 | BI94: 100 | BJ94: 100 | BK94: 100 | BL94: 100
A96: Liquidity/Financial Health | B96: 2006-09 | C96: 2007-09 | D96: 2008-09 | E96: 2009-09 | F96: 2010-09 | G96: 2011-09 | H96: 2012-09 | I96: 2013-09 | J96: 2014-09 | K96: 2015-09 | L96: Latest Qtr | N96: Liquidity/Financial Health | O96: 2005-12 | P96: 2006-12 | Q96: 2007-12 | R96: 2008-12 | S96: 2009-12 | T96: 2010-12 | U96: 2011-12 | V96: 2012-12 | W96: 2013-12 | X96: 2014-12 | Y96: Latest Qtr | AA96: Liquidity/Financial Health | AB96: 2006-06 | AC96: 2007-06 | AD96: 2008-06 | AE96: 2009-06 | AF96: 2010-06 | AG96: 2011-06 | AH96: 2012-06 | AI96: 2013-06 | AJ96: 2014-06 | AK96: 2015-06 | AL96: Latest Qtr | AN96: Liquidity/Financial Health | AO96: 2005-12 | AP96: 2006-12 | AQ96: 2007-12 | AR96: 2008-12 | AS96: 2009-12 | AT96: 2010-12 | AU96: 2011-12 | AV96: 2012-12 | AW96: 2013-12 | AX96: 2014-12 | AY96: Latest Qtr | BA96: Liquidity/Financial Health | BB96: 2005-05 | BC96: 2006-05 | BD96: 2007-05 | BE96: 2008-12 | BF96: 2009-12 | BG96: 2010-12 | BH96: 2011-12 | BI96: 2012-12 | BJ96: 2013-12 | BK96: 2014-12 | BL96: Latest Qtr
A97: Current Ratio | B97: 2.24 | C97: 2.36 | D97: 2.46 | E97: 2.74 | F97: 2.01 | G97: 1.61 | H97: 1.5 | I97: 1.68 | J97: 1.08 | K97: 1.11 | L97: 1.11 | N97: Current Ratio | O97: 1.1 | P97: 1.08 | Q97: 1.11 | R97: 1.09 | S97: 1.18 | T97: 1.19 | U97: 1.02 | V97: 1.05 | W97: 1.03 | X97: 0.96 | Y97: 0.96 | AA97: Current Ratio | AB97: 1.44 | AC97: 1.51 | AD97: 1.59 | AE97: 2.03 | AF97: 1.94 | AG97: 2.01 | AH97: 1.53 | AI97: 1.94 | AJ97: 1.66 | AK97: 1.39 | AL97: 1.38 | AN97: Current Ratio | AV97: 1.54 | AW97: 1.19 | AX97: 3.18 | AY97: 2.9 | BA97: Current Ratio | BB97: 2.39 | BC97: 1.36 | BD97: 1.4 | BE97: 1.1 | BF97: 1.33 | BG97: 0.97 | BH97: 0.93 | BI97: 1 | BJ97: 1.09 | BK97: 1.23 | BL97: 1.4
A98: Quick Ratio | B98: 1.76 | C98: 2.09 | D98: 2.07 | E98: 2.48 | F98: 1.72 | G98: 1.35 | H98: 1.24 | I98: 1.4 | J98: 0.82 | K98: 0.89 | L98: 0.89 | N98: Quick Ratio | O98: 0.61 | P98: 0.49 | Q98: 0.48 | R98: 0.4 | S98: 0.65 | T98: 0.59 | U98: 0.51 | V98: 0.49 | W98: 0.5 | X98: 0.45 | Y98: 0.44 | AA98: Quick Ratio | AB98: 0.85 | AC98: 0.73 | AD98: 0.88 | AE98: 1.35 | AF98: 1.35 | AG98: 1.43 | AH98: 1.02 | AI98: 1.1 | AJ98: 0.99 | AK98: 0.79 | AL98: 0.7 | AN98: Quick Ratio | AV98: 0.9 | AW98: 0.75 | AX98: 2.34 | AY98: 1.83 | BA98: Quick Ratio | BB98: 2.06 | BC98: 0.71 | BD98: 0.98 | BE98: 0.9 | BF98: 1.01 | BG98: 0.69 | BH98: 0.68 | BI98: 0.75 | BJ98: 0.81 | BK98: 1.05 | BL98: 1.07
A99: Financial Leverage | B99: 1.72 | C99: 1.74 | D99: 1.88 | E99: 1.5 | F99: 1.57 | G99: 1.52 | H99: 1.49 | I99: 1.68 | J99: 2.08 | K99: 2.43 | L99: 2.43 | N99: Financial Leverage | O99: 4.73 | P99: 4.23 | Q99: 3.58 | R99: 4.5 | S99: 4.12 | T99: 3.69 | U99: 3.63 | V99: 3.61 | W99: 3.16 | X99: 4.09 | Y99: 4.04 | AA99: Financial Leverage | AB99: 1.92 | AC99: 1.68 | AD99: 2.11 | AE99: 2.56 | AF99: 2.25 | AG99: 2.15 | AH99: 2.07 | AI99: 1.97 | AJ99: 2.3 | AK99: 2.5 | AL99: 2.47 | AN99: Financial Leverage | AX99: 1.43 | AY99: 1.46 | BA99: Financial Leverage | BB99: 1.67 | BC99: 2.56 | BD99: 2.45 | BE99: 3.29 | BF99: 2.62 | BG99: 4.17 | BH99: 3.3 | BI99: 3.23 | BJ99: 2.32 | BK99: 3.18 | BL99: 2.56
A100: Debt/Equity | I100: 0.14 | J100: 0.26 | K100: 0.45 | L100: 0.45 | N100: Debt/Equity | O100: 0.43 | P100: 0.55 | Q100: 0.43 | R100: 0.67 | S100: 0.68 | T100: 0.52 | U100: 0.51 | V100: 0.46 | W100: 0.37 | X100: 0.73 | Y100: 0.72 | AA100: Debt/Equity | AB100: 0.15 | AC100: 0.04 | AD100: 0.32 | AE100: 0.65 | AF100: 0.32 | AG100: 0.27 | AI100: 0.16 | AJ100: 0.29 | AK100: 0.46 | AL100: 0.45 | AN100: Debt/Equity | BA100: Debt/Equity | BG100: 0.58 | BH100: 0.36 | BI100: 0.16 | BK100: 0.36 | BL100: 0.29
A102: Key Ratios -> Efficiency Ratios | N102: Key Ratios -> Efficiency Ratios | AA102: Key Ratios -> Efficiency Ratios | AN102: Key Ratios -> Efficiency Ratios | BA102: Key Ratios -> Efficiency Ratios
A103: Efficiency | B103: 2006-09 | C103: 2007-09 | D103: 2008-09 | E103: 2009-09 | F103: 2010-09 | G103: 2011-09 | H103: 2012-09 | I103: 2013-09 | J103: 2014-09 | K103: 2015-09 | L103: TTM | N103: Efficiency | O103: 2005-12 | P103: 2006-12 | Q103: 2007-12 | R103: 2008-12 | S103: 2009-12 | T103: 2010-12 | U103: 2011-12 | V103: 2012-12 | W103: 2013-12 | X103: 2014-12 | Y103: TTM | AA103: Efficiency | AB103: 2006-06 | AC103: 2007-06 | AD103: 2008-06 | AE103: 2009-06 | AF103: 2010-06 | AG103: 2011-06 | AH103: 2012-06 | AI103: 2013-06 | AJ103: 2014-06 | AK103: 2015-06 | AL103: TTM | AN103: Efficiency | AO103: 2005-12 | AP103: 2006-12 | AQ103: 2007-12 | AR103: 2008-12 | AS103: 2009-12 | AT103: 2010-12 | AU103: 2011-12 | AV103: 2012-12 | AW103: 2013-12 | AX103: 2014-12 | AY103: TTM | BA103: Efficiency | BB103: 2005-05 | BC103: 2006-05 | BD103: 2007-05 | BE103: 2008-12 | BF103: 2009-12 | BG103: 2010-12 | BH103: 2011-12 | BI103: 2012-12 | BJ103: 2013-12 | BK103: 2014-12 | BL103: TTM
A104: Days Sales Outstanding | B104: 20.29 | C104: 21.96 | D104: 22.81 | E104: 24.6 | F104: 24.82 | G104: 18.34 | H104: 19.01 | I104: 25.66 | J104: 30.51 | K104: 26.79 | L104: 26.79 | N104: Days Sales Outstanding | O104: 52.43 | P104: 48.02 | Q104: 49.65 | R104: 45.43 | S104: 49.13 | T104: 47.48 | U104: 42.85 | V104: 41.67 | W104: 39.31 | X104: 43.83 | Y104: 43.86 | AA104: Days Sales Outstanding | AB104: 49.31 | AC104: 47.85 | AD104: 47.07 | AE104: 62.5 | AF104: 50.61 | AG104: 53.04 | AH104: 48.6 | AI104: 55.44 | AJ104: 55.18 | AK104: 56.89 | AL104: 56.08 | AN104: Days Sales Outstanding | AV104: 55.65 | AW104: 37.56 | AX104: 40.14 | AY104: 21.61 | BA104: Days Sales Outstanding | BB104: 107.57 | BC104: 79.96 | BD104: 38.08 | BE104: 110.26 | BF104: 65.87 | BG104: 64.72 | BH104: 60.82 | BI104: 67.12 | BJ104: 69.24 | BK104: 88.18 | BL104: 74.37
A105: Days Inventory | B105: 5.79 | C105: 7.09 | D105: 7.31 | E105: 6.85 | F105: 6.95 | G105: 5.18 | H105: 3.26 | I105: 4.37 | J105: 6.3 | K105: 5.81 | L105: 5.81 | N105: Days Inventory | O105: 53.31 | P105: 46.62 | Q105: 55.39 | R105: 58.55 | S105: 59.39 | T105: 58.17 | U105: 58.37 | V105: 56.34 | W105: 56.17 | X105: 57.02 | Y105: 58.65 | AA105: Days Inventory | AB105: 57.3 | AC105: 62.25 | AD105: 51.28 | AE105: 59.64 | AF105: 50.56 | AG105: 50.87 | AH105: 48.82 | AI105: 55.85 | AJ105: 56.83 | AK105: 57.03 | AL105: 65.04 | AN105: Days Inventory | AV105: 73.86 | AW105: 50.43 | AX105: 63.06 | AY105: 76.58 | BA105: Days Inventory | BB105: 26.5 | BC105: 54.13 | BD105: 33.74 | BE105: 34.23 | BF105: 27.15 | BG105: 39.78 | BH105: 36.45 | BI105: 30.76 | BJ105: 30.6 | BK105: 28.4 | BL105: 36.45
A106: Payables Period | B106: 68.77 | C106: 96.25 | D106: 89.74 | E106: 79.02 | F106: 81.31 | G106: 75.48 | H106: 74.39 | I106: 74.54 | J106: 85.45 | K106: 85.57 | L106: 85.57 | N106: Payables Period | O106: 74.93 | P106: 62.43 | Q106: 68.56 | R106: 67.56 | S106: 75.83 | T106: 81.25 | U106: 81.35 | V106: 86.28 | W106: 89.22 | X106: 95.2 | Y106: 82.35 | AA106: Payables Period | AB106: 51.78 | AC106: 52.81 | AD106: 42.57 | AE106: 48.19 | AF106: 45.96 | AG106: 56.12 | AH106: 56.2 | AI106: 57.36 | AJ106: 56.07 | AK106: 68 | AL106: 66.05 | AN106: Payables Period | AV106: 65.71 | AW106: 52.7 | AX106: 60.12 | AY106: 51.27 | BA106: Payables Period | BB106: 75.72 | BC106: 73.45 | BD106: 49.86 | BE106: 138.54 | BF106: 83.33 | BG106: 88.21 | BH106: 72.73 | BI106: 77.36 | BJ106: 92.17 | BK106: 113.55 | BL106: 101.46
A107: Cash Conversion Cycle | B107: -42.7 | C107: -67.19 | D107: -59.61 | E107: -47.58 | F107: -49.53 | G107: -51.96 | H107: -52.13 | I107: -44.5 | J107: -48.64 | K107: -52.97 | L107: -52.97 | N107: Cash Conversion Cycle | O107: 30.81 | P107: 32.21 | Q107: 36.48 | R107: 36.42 | S107: 32.69 | T107: 24.4 | U107: 19.87 | V107: 11.73 | W107: 6.27 | X107: 5.66 | Y107: 20.16 | AA107: Cash Conversion Cycle | AB107: 54.83 | AC107: 57.29 | AD107: 55.78 | AE107: 73.95 | AF107: 55.2 | AG107: 47.78 | AH107: 41.23 | AI107: 53.93 | AJ107: 55.95 | AK107: 45.92 | AL107: 55.06 | AN107: Cash Conversion Cycle | AV107: 63.8 | AW107: 35.29 | AX107: 43.08 | AY107: 46.93 | BA107: Cash Conversion Cycle | BB107: 58.34 | BC107: 60.64 | BD107: 21.96 | BE107: 5.95 | BF107: 9.69 | BG107: 16.3 | BH107: 24.55 | BI107: 20.52 | BJ107: 7.67 | BK107: 3.03 | BL107: 9.36
A108: Receivables Turnover | B108: 17.99 | C108: 16.62 | D108: 16 | E108: 14.84 | F108: 14.71 | G108: 19.9 | H108: 19.2 | I108: 14.22 | J108: 11.96 | K108: 13.62 | L108: 13.62 | N108: Receivables Turnover | O108: 6.96 | P108: 7.6 | Q108: 7.35 | R108: 8.03 | S108: 7.43 | T108: 7.69 | U108: 8.52 | V108: 8.76 | W108: 9.28 | X108: 8.33 | Y108: 8.32 | AA108: Receivables Turnover | AB108: 7.4 | AC108: 7.63 | AD108: 7.75 | AE108: 5.84 | AF108: 7.21 | AG108: 6.88 | AH108: 7.51 | AI108: 6.58 | AJ108: 6.61 | AK108: 6.42 | AL108: 6.51 | AN108: Receivables Turnover | AV108: 6.56 | AW108: 9.72 | AX108: 9.09 | AY108: 16.89 | BA108: Receivables Turnover | BB108: 3.39 | BC108: 4.56 | BD108: 9.58 | BE108: 3.31 | BF108: 5.54 | BG108: 5.64 | BH108: 6 | BI108: 5.44 | BJ108: 5.27 | BK108: 4.14 | BL108: 4.91
A109: Inventory Turnover | B109: 63.07 | C109: 51.47 | D109: 49.9 | E109: 53.28 | F109: 52.51 | G109: 70.53 | H109: 112.12 | I109: 83.45 | J109: 57.94 | K109: 62.82 | L109: 62.82 | N109: Inventory Turnover | O109: 6.85 | P109: 7.83 | Q109: 6.59 | R109: 6.23 | S109: 6.15 | T109: 6.27 | U109: 6.25 | V109: 6.48 | W109: 6.5 | X109: 6.4 | Y109: 6.22 | AA109: Inventory Turnover | AB109: 6.37 | AC109: 5.86 | AD109: 7.12 | AE109: 6.12 | AF109: 7.22 | AG109: 7.18 | AH109: 7.48 | AI109: 6.54 | AJ109: 6.42 | AK109: 6.4 | AL109: 5.61 | AN109: Inventory Turnover | AV109: 4.94 | AW109: 7.24 | AX109: 5.79 | AY109: 4.77 | BA109: Inventory Turnover | BB109: 13.78 | BC109: 6.74 | BD109: 10.82 | BE109: 10.66 | BF109: 13.45 | BG109: 9.18 | BH109: 10.01 | BI109: 11.87 | BJ109: 11.93 | BK109: 12.85 | BL109: 10.01
A110: Fixed Assets Turnover | B110: 18.41 | C110: 15.42 | D110: 15.15 | E110: 15.86 | F110: 16.89 | G110: 17.26 | H110: 13.48 | I110: 10.67 | J110: 9.82 | K110: 10.85 | L110: 10.85 | N110: Fixed Assets Turnover | O110: 5.62 | P110: 6.38 | Q110: 6.09 | R110: 6.1 | S110: 5.6 | T110: 5.88 | U110: 5.99 | V110: 5.91 | W110: 6.18 | X110: 5.66 | Y110: 6.4 | AA110: Fixed Assets Turnover | AB110: 6.41 | AC110: 6.38 | AD110: 6.68 | AE110: 4.99 | AF110: 7.15 | AG110: 8.46 | AH110: 9.69 | AI110: 10.05 | AJ110: 11.44 | AK110: 11.59 | AL110: 12.25 | AN110: Fixed Assets Turnover | AV110: 23.44 | AW110: 36.14 | AX110: 37.85 | AY110: 33.66 | BA110: Fixed Assets Turnover | BB110: 26.62 | BC110: 25.71 | BD110: 54.52 | BE110: 50.71 | BF110: 68.88 | BG110: 48.89 | BH110: 39.92 | BI110: 38.21 | BJ110: 40.22 | BK110: 42.53 | BL110: 41.69
A111: Asset Turnover | B111: 1.34 | C111: 1.13 | D111: 1 | E111: 0.99 | F111: 1.06 | G111: 1.13 | H111: 1.07 | I111: 0.89 | J111: 0.83 | K111: 0.89 | L111: 0.89 | N111: Asset Turnover | O111: 1.74 | P111: 1.63 | Q111: 1.39 | R111: 1.37 | S111: 1.19 | T111: 1.2 | U111: 1.21 | V111: 1.19 | W111: 1.21 | X111: 1.12 | Y111: 1.21 | AA111: Asset Turnover | AB111: 1.43 | AC111: 1.46 | AD111: 1.54 | AE111: 1.09 | AF111: 1.33 | AG111: 1.34 | AH111: 1.4 | AI111: 1.34 | AJ111: 1.45 | AK111: 1.22 | AL111: 1.29 | AN111: Asset Turnover | AV111: 2.13 | AW111: 2.87 | AX111: 2.05 | AY111: 2.02 | BA111: Asset Turnover | BB111: 1.58 | BC111: 1.58 | BD111: 3.31 | BE111: 1.57 | BF111: 2.4 | BG111: 1.72 | BH111: 1.59 | BI111: 1.7 | BJ111: 1.79 | BK111: 1.54 | BL111: 1.4
